Workbook

Sheet CC I CV
A1: SPL Classic C(H) / V(H) | D1: Длина, см | E1: Высота, см | F1: Тип | G1: ПРИМЕЧАНИЕ
D2: 220 | E2: 50 | F2: 21
D3: Необходимая мощность, Вт | E3: ∆t | F3: LMTD
D4: 3500 | E4: =(D6+E6)/2-F6 -> 70 | F4: =(D6-E6)/LN((D6-F6)/(E6-F6)) -> 68.91512662
D5: tвх | E5: tвых | F5: tвн
D6: 105 | E6: 75 | F6: 20
A9: CC/CV | B9: Высота (см) | C9: Тип | D9: Модель | E9: Подключение | F9: Артикул заказа | T9: Длина, см
G10: 40 | H10: 50 | I10: 60 | J10: 70 | K10: 80 | L10: 90 | M10: 100 | N10: 110 | O10: 120 | P10: 130 | Q10: 140 | R10: 150 | S10: 160 | T10: 170 | U10: 180 | V10: 190 | W10: 200 | X10: 210 | Y10: 220 | Z10: 230 | AA10: 240 | AB10: 250 | AC10: 260 | AD10: 270 | AE10: 280 | AF10: 290 | AG10: 300
B11: 20 | C11: 20 | D11: Classic CH / Classic CV(L)H | E11: боковое / нижнее | F11: CCH 20-2-XX / CV(L)H 20-2-XX | G11: ='t CC I CV'!G80*'График CC I CV'!$B$4 -> 269 | H11: ='t CC I CV'!H80*'График CC I CV'!$B$4 -> 336 | I11: ='t CC I CV'!I80*'График CC I CV'!$B$4 -> 404 | J11: ='t CC I CV'!J80*'График CC I CV'!$B$4 -> 471 | K11: ='t CC I CV'!K80*'График CC I CV'!$B$4 -> 538 | L11: ='t CC I CV'!L80*'График CC I CV'!$B$4 -> 605 | M11: ='t CC I CV'!M80*'График CC I CV'!$B$4 -> 673 | N11: ='t CC I CV'!N80*'График CC I CV'!$B$4 -> 740 | O11: ='t CC I CV'!O80*'График CC I CV'!$B$4 -> 807 | P11: ='t CC I CV'!P80*'График CC I CV'!$B$4 -> 874 | Q11: ='t CC I CV'!Q80*'График CC I CV'!$B$4 -> 942 | R11: ='t CC I CV'!R80*'График CC I CV'!$B$4 -> 1009 | S11: ='t CC I CV'!S80*'График CC I CV'!$B$4 -> 1076 | T11: ='t CC I CV'!T80*'График CC I CV'!$B$4 -> 1143 | U11: ='t CC I CV'!U80*'График CC I CV'!$B$4 -> 1211 | V11: ='t CC I CV'!V80*'График CC I CV'!$B$4 -> 1278 | W11: ='t CC I CV'!W80*'График CC I CV'!$B$4 -> 1345 | X11: ='t CC I CV'!X80*'График CC I CV'!$B$4 -> 1412 | Y11: ='t CC I CV'!Y80*'График CC I CV'!$B$4 -> 1480 | Z11: ='t CC I CV'!Z80*'График CC I CV'!$B$4 -> 1547 | AA11: ='t CC I CV'!AA80*'График CC I CV'!$B$4 -> 1614 | AB11: ='t CC I CV'!AB80*'График CC I CV'!$B$4 -> 1681 | AC11: ='t CC I CV'!AC80*'График CC I CV'!$B$4 -> 1749 | AD11: ='t CC I CV'!AD80*'График CC I CV'!$B$4 -> 1816 | AE11: ='t CC I CV'!AE80*'График CC I CV'!$B$4 -> 1883 | AF11: ='t CC I CV'!AF80*'График CC I CV'!$B$4 -> 1950 | AG11: ='t CC I CV'!AG80*'График CC I CV'!$B$4 -> 2018
C13: 21 | D13: Classic C / Classic CV(L) | E13: боковое / нижнее | F13: CC 21-2-XX / CV(L) 21-2-XX | G13: ='t CC I CV'!G83*'График CC I CV'!$B$4 -> 319 | H13: ='t CC I CV'!H83*'График CC I CV'!$B$4 -> 399 | I13: ='t CC I CV'!I83*'График CC I CV'!$B$4 -> 479 | J13: ='t CC I CV'!J83*'График CC I CV'!$B$4 -> 559 | K13: ='t CC I CV'!K83*'График CC I CV'!$B$4 -> 639 | L13: ='t CC I CV'!L83*'График CC I CV'!$B$4 -> 719 | M13: ='t CC I CV'!M83*'График CC I CV'!$B$4 -> 798 | N13: ='t CC I CV'!N83*'График CC I CV'!$B$4 -> 878 | O13: ='t CC I CV'!O83*'График CC I CV'!$B$4 -> 958 | P13: ='t CC I CV'!P83*'График CC I CV'!$B$4 -> 1038 | Q13: ='t CC I CV'!Q83*'График CC I CV'!$B$4 -> 1118 | R13: ='t CC I CV'!R83*'График CC I CV'!$B$4 -> 1198 | S13: ='t CC I CV'!S83*'График CC I CV'!$B$4 -> 1277 | T13: ='t CC I CV'!T83*'График CC I CV'!$B$4 -> 1357 | U13: ='t CC I CV'!U83*'График CC I CV'!$B$4 -> 1437 | V13: ='t CC I CV'!V83*'График CC I CV'!$B$4 -> 1517 | W13: ='t CC I CV'!W83*'График CC I CV'!$B$4 -> 1597 | X13: ='t CC I CV'!X83*'График CC I CV'!$B$4 -> 1677 | Y13: ='t CC I CV'!Y83*'График CC I CV'!$B$4 -> 1757 | Z13: ='t CC I CV'!Z83*'График CC I CV'!$B$4 -> 1836 | AA13: ='t CC I CV'!AA83*'График CC I CV'!$B$4 -> 1916 | AB13: ='t CC I CV'!AB83*'График CC I CV'!$B$4 -> 1996 | AC13: ='t CC I CV'!AC83*'График CC I CV'!$B$4 -> 2076 | AD13: ='t CC I CV'!AD83*'График CC I CV'!$B$4 -> 2156 | AE13: ='t CC I CV'!AE83*'График CC I CV'!$B$4 -> 2236 | AF13: ='t CC I CV'!AF83*'График CC I CV'!$B$4 -> 2315 | AG13: ='t CC I CV'!AG83*'График CC I CV'!$B$4 -> 2395
C15: 22 | D15: Classic C / Classic CV(L) | E15: боковое / нижнее | F15: CC 22-2-XX / CV(L) 22-2-XX | G15: ='t CC I CV'!G86*'График CC I CV'!$B$4 -> 437 | H15: ='t CC I CV'!H86*'График CC I CV'!$B$4 -> 531 | I15: ='t CC I CV'!I86*'График CC I CV'!$B$4 -> 624 | J15: ='t CC I CV'!J86*'График CC I CV'!$B$4 -> 719 | K15: ='t CC I CV'!K86*'График CC I CV'!$B$4 -> 813 | L15: ='t CC I CV'!L86*'График CC I CV'!$B$4 -> 908 | M15: ='t CC I CV'!M86*'График CC I CV'!$B$4 -> 1002 | N15: ='t CC I CV'!N86*'График CC I CV'!$B$4 -> 1098 | O15: ='t CC I CV'!O86*'График CC I CV'!$B$4 -> 1192 | P15: ='t CC I CV'!P86*'График CC I CV'!$B$4 -> 1286 | Q15: ='t CC I CV'!Q86*'График CC I CV'!$B$4 -> 1386 | R15: ='t CC I CV'!R86*'График CC I CV'!$B$4 -> 1476 | S15: ='t CC I CV'!S86*'График CC I CV'!$B$4 -> 1571 | T15: ='t CC I CV'!T86*'График CC I CV'!$B$4 -> 1665 | U15: ='t CC I CV'!U86*'График CC I CV'!$B$4 -> 1760 | V15: ='t CC I CV'!V86*'График CC I CV'!$B$4 -> 1857 | W15: ='t CC I CV'!W86*'График CC I CV'!$B$4 -> 1954 | X15: ='t CC I CV'!X86*'График CC I CV'!$B$4 -> 2053 | Y15: ='t CC I CV'!Y86*'График CC I CV'!$B$4 -> 2150 | Z15: ='t CC I CV'!Z86*'График CC I CV'!$B$4 -> 2248 | AA15: ='t CC I CV'!AA86*'График CC I CV'!$B$4 -> 2346 | AB15: ='t CC I CV'!AB86*'График CC I CV'!$B$4 -> 2441 | AC15: ='t CC I CV'!AC86*'График CC I CV'!$B$4 -> 2539 | AD15: ='t CC I CV'!AD86*'График CC I CV'!$B$4 -> 2639 | AE15: ='t CC I CV'!AE86*'График CC I CV'!$B$4 -> 2736 | AF15: ='t CC I CV'!AF86*'График CC I CV'!$B$4 -> 2835 | AG15: ='t CC I CV'!AG86*'График CC I CV'!$B$4 -> 2929
C17: 30 | D17: Classic CH / Classic CV(L)H | E17: боковое / нижнее | F17: CCH 30-2-XX / CV(L)H 30-2-XX | G17: ='t CC I CV'!G89*'График CC I CV'!$B$4 -> 426 | H17: ='t CC I CV'!H89*'График CC I CV'!$B$4 -> 532 | I17: ='t CC I CV'!I89*'График CC I CV'!$B$4 -> 639 | J17: ='t CC I CV'!J89*'График CC I CV'!$B$4 -> 745 | K17: ='t CC I CV'!K89*'График CC I CV'!$B$4 -> 852 | L17: ='t CC I CV'!L89*'График CC I CV'!$B$4 -> 958 | M17: ='t CC I CV'!M89*'График CC I CV'!$B$4 -> 1064 | N17: ='t CC I CV'!N89*'График CC I CV'!$B$4 -> 1171 | O17: ='t CC I CV'!O89*'График CC I CV'!$B$4 -> 1277 | P17: ='t CC I CV'!P89*'График CC I CV'!$B$4 -> 1383 | Q17: ='t CC I CV'!Q89*'График CC I CV'!$B$4 -> 1490 | R17: ='t CC I CV'!R89*'График CC I CV'!$B$4 -> 1596 | S17: ='t CC I CV'!S89*'График CC I CV'!$B$4 -> 1703 | T17: ='t CC I CV'!T89*'График CC I CV'!$B$4 -> 1809 | U17: ='t CC I CV'!U89*'График CC I CV'!$B$4 -> 1916 | V17: ='t CC I CV'!V89*'График CC I CV'!$B$4 -> 2022 | W17: ='t CC I CV'!W89*'График CC I CV'!$B$4 -> 2129 | X17: ='t CC I CV'!X89*'График CC I CV'!$B$4 -> 2235 | Y17: ='t CC I CV'!Y89*'График CC I CV'!$B$4 -> 2342 | Z17: ='t CC I CV'!Z89*'График CC I CV'!$B$4 -> 2448 | AA17: ='t CC I CV'!AA89*'График CC I CV'!$B$4 -> 2555 | AB17: ='t CC I CV'!AB89*'График CC I CV'!$B$4 -> 2661 | AC17: ='t CC I CV'!AC89*'График CC I CV'!$B$4 -> 2767 | AD17: ='t CC I CV'!AD89*'График CC I CV'!$B$4 -> 2874 | AE17: ='t CC I CV'!AE89*'График CC I CV'!$B$4 -> 2980 | AF17: ='t CC I CV'!AF89*'График CC I CV'!$B$4 -> 3087 | AG17: ='t CC I CV'!AG89*'График CC I CV'!$B$4 -> 3193
C19: 33 | D19: Classic C / Classic CV(L) | E19: боковое / нижнее | F19: CC 33-2-XX / CV(L) 33-2-XX | G19: ='t CC I CV'!G92*'График CC I CV'!$B$4 -> 581 | H19: ='t CC I CV'!H92*'График CC I CV'!$B$4 -> 726 | I19: ='t CC I CV'!I92*'График CC I CV'!$B$4 -> 871 | J19: ='t CC I CV'!J92*'График CC I CV'!$B$4 -> 1017 | K19: ='t CC I CV'!K92*'График CC I CV'!$B$4 -> 1162 | L19: ='t CC I CV'!L92*'График CC I CV'!$B$4 -> 1307 | M19: ='t CC I CV'!M92*'График CC I CV'!$B$4 -> 1453 | N19: ='t CC I CV'!N92*'График CC I CV'!$B$4 -> 1598 | O19: ='t CC I CV'!O92*'График CC I CV'!$B$4 -> 1743 | P19: ='t CC I CV'!P92*'График CC I CV'!$B$4 -> 1889 | Q19: ='t CC I CV'!Q92*'График CC I CV'!$B$4 -> 2034 | R19: ='t CC I CV'!R92*'График CC I CV'!$B$4 -> 2179 | S19: ='t CC I CV'!S92*'График CC I CV'!$B$4 -> 2324 | T19: ='t CC I CV'!T92*'График CC I CV'!$B$4 -> 2470 | U19: ='t CC I CV'!U92*'График CC I CV'!$B$4 -> 2615 | V19: ='t CC I CV'!V92*'График CC I CV'!$B$4 -> 2760 | W19: ='t CC I CV'!W92*'График CC I CV'!$B$4 -> 2905 | X19: ='t CC I CV'!X92*'График CC I CV'!$B$4 -> 3050 | Y19: ='t CC I CV'!Y92*'График CC I CV'!$B$4 -> 3195 | Z19: ='t CC I CV'!Z92*'График CC I CV'!$B$4 -> 3341 | AA19: ='t CC I CV'!AA92*'График CC I CV'!$B$4 -> 3486 | AB19: ='t CC I CV'!AB92*'График CC I CV'!$B$4 -> 3631 | AC19: ='t CC I CV'!AC92*'График CC I CV'!$B$4 -> 3777 | AD19: ='t CC I CV'!AD92*'График CC I CV'!$B$4 -> 3922 | AE19: ='t CC I CV'!AE92*'График CC I CV'!$B$4 -> 4067 | AF19: ='t CC I CV'!AF92*'График CC I CV'!$B$4 -> 4242 | AG19: ='t CC I CV'!AG92*'График CC I CV'!$B$4 -> 4358
A23: CC/CV | B23: Высота (см) | C23: Тип | D23: Модель | E23: Подключение | F23: Артикул заказа | T23: Длина, см
G24: 40 | H24: 50 | I24: 60 | J24: 70 | K24: 80 | L24: 90 | M24: 100 | N24: 110 | O24: 120 | P24: 130 | Q24: 140 | R24: 150 | S24: 160 | T24: 170 | U24: 180 | V24: 190 | W24: 200 | X24: 210 | Y24: 220 | Z24: 230 | AA24: 240 | AB24: 250 | AC24: 260 | AD24: 270 | AE24: 280 | AF24: 290 | AG24: 300
B25: 30 | C25: 10 | D25: Classic CH / Classic CV(L)H | E25: боковое / нижнее | F25: CCH 10-3-XX / CV(L)H 10-3-XX | G25: ='t CC I CV'!G5*'График CC I CV'!$B$4 -> 226 | H25: ='t CC I CV'!H5*'График CC I CV'!$B$4 -> 282 | I25: ='t CC I CV'!I5*'График CC I CV'!$B$4 -> 339 | J25: ='t CC I CV'!J5*'График CC I CV'!$B$4 -> 395 | K25: ='t CC I CV'!K5*'График CC I CV'!$B$4 -> 452 | L25: ='t CC I CV'!L5*'График CC I CV'!$B$4 -> 508 | M25: ='t CC I CV'!M5*'График CC I CV'!$B$4 -> 565 | N25: ='t CC I CV'!N5*'График CC I CV'!$B$4 -> 621 | O25: ='t CC I CV'!O5*'График CC I CV'!$B$4 -> 678 | P25: ='t CC I CV'!P5*'График CC I CV'!$B$4 -> 734 | Q25: ='t CC I CV'!Q5*'График CC I CV'!$B$4 -> 791 | R25: ='t CC I CV'!R5*'График CC I CV'!$B$4 -> 847 | S25: ='t CC I CV'!S5*'График CC I CV'!$B$4 -> 904 | T25: ='t CC I CV'!T5*'График CC I CV'!$B$4 -> 960 | U25: ='t CC I CV'!U5*'График CC I CV'!$B$4 -> 1017 | V25: ='t CC I CV'!V5*'График CC I CV'!$B$4 -> 1073 | W25: ='t CC I CV'!W5*'График CC I CV'!$B$4 -> 1130 | X25: ='t CC I CV'!X5*'График CC I CV'!$B$4 -> 1186 | Y25: ='t CC I CV'!Y5*'График CC I CV'!$B$4 -> 1243 | Z25: ='t CC I CV'!Z5*'График CC I CV'!$B$4 -> 1299 | AA25: ='t CC I CV'!AA5*'График CC I CV'!$B$4 -> 1356 | AB25: ='t CC I CV'!AB5*'График CC I CV'!$B$4 -> 1412 | AC25: ='t CC I CV'!AC5*'График CC I CV'!$B$4 -> 1469 | AD25: ='t CC I CV'!AD5*'График CC I CV'!$B$4 -> 1525 | AE25: ='t CC I CV'!AE5*'График CC I CV'!$B$4 -> 1582 | AF25: ='t CC I CV'!AF5*'График CC I CV'!$B$4 -> 1638 | AG25: ='t CC I CV'!AG5*'График CC I CV'!$B$4 -> 1695
C27: 11 | D27: Classic C / Classic CV(L) | E27: боковое / нижнее | F27: CC 11-3-XX / CV(L) 11-3-XX | G27: ='t CC I CV'!G8*'График CC I CV'!$B$4 -> 319 | H27: ='t CC I CV'!H8*'График CC I CV'!$B$4 -> 399 | I27: ='t CC I CV'!I8*'График CC I CV'!$B$4 -> 478 | J27: ='t CC I CV'!J8*'График CC I CV'!$B$4 -> 558 | K27: ='t CC I CV'!K8*'График CC I CV'!$B$4 -> 638 | L27: ='t CC I CV'!L8*'График CC I CV'!$B$4 -> 717 | M27: ='t CC I CV'!M8*'График CC I CV'!$B$4 -> 797 | N27: ='t CC I CV'!N8*'График CC I CV'!$B$4 -> 877 | O27: ='t CC I CV'!O8*'График CC I CV'!$B$4 -> 957 | P27: ='t CC I CV'!P8*'График CC I CV'!$B$4 -> 1036 | Q27: ='t CC I CV'!Q8*'График CC I CV'!$B$4 -> 1116 | R27: ='t CC I CV'!R8*'График CC I CV'!$B$4 -> 1196 | S27: ='t CC I CV'!S8*'График CC I CV'!$B$4 -> 1275 | T27: ='t CC I CV'!T8*'График CC I CV'!$B$4 -> 1355 | U27: ='t CC I CV'!U8*'График CC I CV'!$B$4 -> 1435 | V27: ='t CC I CV'!V8*'График CC I CV'!$B$4 -> 1515 | W27: ='t CC I CV'!W8*'График CC I CV'!$B$4 -> 1594 | X27: ='t CC I CV'!X8*'График CC I CV'!$B$4 -> 1674 | Y27: ='t CC I CV'!Y8*'График CC I CV'!$B$4 -> 1754 | Z27: ='t CC I CV'!Z8*'График CC I CV'!$B$4 -> 1833 | AA27: ='t CC I CV'!AA8*'График CC I CV'!$B$4 -> 1913 | AB27: ='t CC I CV'!AB8*'График CC I CV'!$B$4 -> 1993 | AC27: ='t CC I CV'!AC8*'График CC I CV'!$B$4 -> 2073 | AD27: ='t CC I CV'!AD8*'График CC I CV'!$B$4 -> 2152 | AE27: ='t CC I CV'!AE8*'График CC I CV'!$B$4 -> 2232 | AF27: ='t CC I CV'!AF8*'График CC I CV'!$B$4 -> 2312 | AG27: ='t CC I CV'!AG8*'График CC I CV'!$B$4 -> 2391
C29: 20 | D29: Classic CH / Classic CV(L)H | E29: боковое / нижнее | F29: CCH 20-3-XX / CV(L)H 20-3-XX | G29: ='t CC I CV'!G11*'График CC I CV'!$B$4 -> 387 | H29: ='t CC I CV'!H11*'График CC I CV'!$B$4 -> 483 | I29: ='t CC I CV'!I11*'График CC I CV'!$B$4 -> 580 | J29: ='t CC I CV'!J11*'График CC I CV'!$B$4 -> 677 | K29: ='t CC I CV'!K11*'График CC I CV'!$B$4 -> 773 | L29: ='t CC I CV'!L11*'График CC I CV'!$B$4 -> 870 | M29: ='t CC I CV'!M11*'График CC I CV'!$B$4 -> 967 | N29: ='t CC I CV'!N11*'График CC I CV'!$B$4 -> 1063 | O29: ='t CC I CV'!O11*'График CC I CV'!$B$4 -> 1160 | P29: ='t CC I CV'!P11*'График CC I CV'!$B$4 -> 1257 | Q29: ='t CC I CV'!Q11*'График CC I CV'!$B$4 -> 1353 | R29: ='t CC I CV'!R11*'График CC I CV'!$B$4 -> 1450 | S29: ='t CC I CV'!S11*'График CC I CV'!$B$4 -> 1547 | T29: ='t CC I CV'!T11*'График CC I CV'!$B$4 -> 1643 | U29: ='t CC I CV'!U11*'График CC I CV'!$B$4 -> 1740 | V29: ='t CC I CV'!V11*'График CC I CV'!$B$4 -> 1837 | W29: ='t CC I CV'!W11*'График CC I CV'!$B$4 -> 1933 | X29: ='t CC I CV'!X11*'График CC I CV'!$B$4 -> 2030 | Y29: ='t CC I CV'!Y11*'График CC I CV'!$B$4 -> 2127 | Z29: ='t CC I CV'!Z11*'График CC I CV'!$B$4 -> 2223 | AA29: ='t CC I CV'!AA11*'График CC I CV'!$B$4 -> 2320 | AB29: ='t CC I CV'!AB11*'График CC I CV'!$B$4 -> 2416 | AC29: ='t CC I CV'!AC11*'График CC I CV'!$B$4 -> 2513 | AD29: ='t CC I CV'!AD11*'График CC I CV'!$B$4 -> 2610 | AE29: ='t CC I CV'!AE11*'График CC I CV'!$B$4 -> 2706 | AF29: ='t CC I CV'!AF11*'График CC I CV'!$B$4 -> 2803 | AG29: ='t CC I CV'!AG11*'График CC I CV'!$B$4 -> 2900
C31: 21 | D31: Classic C / Classic CV(L) | E31: боковое / нижнее | F31: CC 21-3-XX / CV(L) 21-3-XX | G31: ='t CC I CV'!G14*'График CC I CV'!$B$4 -> 482 | H31: ='t CC I CV'!H14*'График CC I CV'!$B$4 -> 602 | I31: ='t CC I CV'!I14*'График CC I CV'!$B$4 -> 723 | J31: ='t CC I CV'!J14*'График CC I CV'!$B$4 -> 843 | K31: ='t CC I CV'!K14*'График CC I CV'!$B$4 -> 964 | L31: ='t CC I CV'!L14*'График CC I CV'!$B$4 -> 1084 | M31: ='t CC I CV'!M14*'График CC I CV'!$B$4 -> 1204 | N31: ='t CC I CV'!N14*'График CC I CV'!$B$4 -> 1325 | O31: ='t CC I CV'!O14*'График CC I CV'!$B$4 -> 1445 | P31: ='t CC I CV'!P14*'График CC I CV'!$B$4 -> 1566 | Q31: ='t CC I CV'!Q14*'График CC I CV'!$B$4 -> 1686 | R31: ='t CC I CV'!R14*'График CC I CV'!$B$4 -> 1807 | S31: ='t CC I CV'!S14*'График CC I CV'!$B$4 -> 1927 | T31: ='t CC I CV'!T14*'График CC I CV'!$B$4 -> 2047 | U31: ='t CC I CV'!U14*'График CC I CV'!$B$4 -> 2168 | V31: ='t CC I CV'!V14*'График CC I CV'!$B$4 -> 2288 | W31: ='t CC I CV'!W14*'График CC I CV'!$B$4 -> 2409 | X31: ='t CC I CV'!X14*'График CC I CV'!$B$4 -> 2529 | Y31: ='t CC I CV'!Y14*'График CC I CV'!$B$4 -> 2650 | Z31: ='t CC I CV'!Z14*'График CC I CV'!$B$4 -> 2770 | AA31: ='t CC I CV'!AA14*'График CC I CV'!$B$4 -> 2891 | AB31: ='t CC I CV'!AB14*'График CC I CV'!$B$4 -> 3011 | AC31: ='t CC I CV'!AC14*'График CC I CV'!$B$4 -> 3131 | AD31: ='t CC I CV'!AD14*'График CC I CV'!$B$4 -> 3252 | AE31: ='t CC I CV'!AE14*'График CC I CV'!$B$4 -> 3372 | AF31: ='t CC I CV'!AF14*'График CC I CV'!$B$4 -> 3493 | AG31: ='t CC I CV'!AG14*'График CC I CV'!$B$4 -> 3613
C33: 22 | D33: Classic C / Classic CV(L) | E33: боковое / нижнее | F33: CC 22-3-XX / CV(L) 22-3-XX | G33: ='t CC I CV'!G17*'График CC I CV'!$B$4 -> 609 | H33: ='t CC I CV'!H17*'График CC I CV'!$B$4 -> 761 | I33: ='t CC I CV'!I17*'График CC I CV'!$B$4 -> 913 | J33: ='t CC I CV'!J17*'График CC I CV'!$B$4 -> 1065 | K33: ='t CC I CV'!K17*'График CC I CV'!$B$4 -> 1217 | L33: ='t CC I CV'!L17*'График CC I CV'!$B$4 -> 1369 | M33: ='t CC I CV'!M17*'График CC I CV'!$B$4 -> 1521 | N33: ='t CC I CV'!N17*'График CC I CV'!$B$4 -> 1674 | O33: ='t CC I CV'!O17*'График CC I CV'!$B$4 -> 1826 | P33: ='t CC I CV'!P17*'График CC I CV'!$B$4 -> 1978 | Q33: ='t CC I CV'!Q17*'График CC I CV'!$B$4 -> 2130 | R33: ='t CC I CV'!R17*'График CC I CV'!$B$4 -> 2282 | S33: ='t CC I CV'!S17*'График CC I CV'!$B$4 -> 2434 | T33: ='t CC I CV'!T17*'График CC I CV'!$B$4 -> 2586 | U33: ='t CC I CV'!U17*'График CC I CV'!$B$4 -> 2739 | V33: ='t CC I CV'!V17*'График CC I CV'!$B$4 -> 2891 | W33: ='t CC I CV'!W17*'График CC I CV'!$B$4 -> 3043 | X33: ='t CC I CV'!X17*'График CC I CV'!$B$4 -> 3195 | Y33: ='t CC I CV'!Y17*'График CC I CV'!$B$4 -> 3347 | Z33: ='t CC I CV'!Z17*'График CC I CV'!$B$4 -> 3499 | AA33: ='t CC I CV'!AA17*'График CC I CV'!$B$4 -> 3651 | AB33: ='t CC I CV'!AB17*'График CC I CV'!$B$4 -> 3803 | AC33: ='t CC I CV'!AC17*'График CC I CV'!$B$4 -> 3956 | AD33: ='t CC I CV'!AD17*'График CC I CV'!$B$4 -> 4108 | AE33: ='t CC I CV'!AE17*'График CC I CV'!$B$4 -> 4260 | AF33: ='t CC I CV'!AF17*'График CC I CV'!$B$4 -> 4412 | AG33: ='t CC I CV'!AG17*'График CC I CV'!$B$4 -> 4564
C35: 30 | D35: Classic CH / Classic CV(L)H | E35: боковое / нижнее | F35: CCH 30-3-XX / CV(L)H 30-3-XX | G35: ='t CC I CV'!G20*'График CC I CV'!$B$4 -> 594 | H35: ='t CC I CV'!H20*'График CC I CV'!$B$4 -> 742 | I35: ='t CC I CV'!I20*'График CC I CV'!$B$4 -> 891 | J35: ='t CC I CV'!J20*'График CC I CV'!$B$4 -> 1039 | K35: ='t CC I CV'!K20*'График CC I CV'!$B$4 -> 1188 | L35: ='t CC I CV'!L20*'График CC I CV'!$B$4 -> 1336 | M35: ='t CC I CV'!M20*'График CC I CV'!$B$4 -> 1485 | N35: ='t CC I CV'!N20*'График CC I CV'!$B$4 -> 1633 | O35: ='t CC I CV'!O20*'График CC I CV'!$B$4 -> 1781 | P35: ='t CC I CV'!P20*'График CC I CV'!$B$4 -> 1930 | Q35: ='t CC I CV'!Q20*'График CC I CV'!$B$4 -> 2078 | R35: ='t CC I CV'!R20*'График CC I CV'!$B$4 -> 2227 | S35: ='t CC I CV'!S20*'График CC I CV'!$B$4 -> 2375 | T35: ='t CC I CV'!T20*'График CC I CV'!$B$4 -> 2524 | U35: ='t CC I CV'!U20*'График CC I CV'!$B$4 -> 2672 | V35: ='t CC I CV'!V20*'График CC I CV'!$B$4 -> 2821 | W35: ='t CC I CV'!W20*'График CC I CV'!$B$4 -> 2969 | X35: ='t CC I CV'!X20*'График CC I CV'!$B$4 -> 3118 | Y35: ='t CC I CV'!Y20*'График CC I CV'!$B$4 -> 3266 | Z35: ='t CC I CV'!Z20*'График CC I CV'!$B$4 -> 3414 | AA35: ='t CC I CV'!AA20*'График CC I CV'!$B$4 -> 3563 | AB35: ='t CC I CV'!AB20*'График CC I CV'!$B$4 -> 3711 | AC35: ='t CC I CV'!AC20*'График CC I CV'!$B$4 -> 3860 | AD35: ='t CC I CV'!AD20*'График CC I CV'!$B$4 -> 4008 | AE35: ='t CC I CV'!AE20*'График CC I CV'!$B$4 -> 4157 | AF35: ='t CC I CV'!AF20*'График CC I CV'!$B$4 -> 4305 | AG35: ='t CC I CV'!AG20*'График CC I CV'!$B$4 -> 4454
C37: 33 | D37: Classic C / Classic CV(L) | E37: боковое / нижнее | F37: CC 33-3-XX / CV(L) 33-3-XX | G37: ='t CC I CV'!G23*'График CC I CV'!$B$4 -> 903 | H37: ='t CC I CV'!H23*'График CC I CV'!$B$4 -> 1129 | I37: ='t CC I CV'!I23*'График CC I CV'!$B$4 -> 1355 | J37: ='t CC I CV'!J23*'График CC I CV'!$B$4 -> 1580 | K37: ='t CC I CV'!K23*'График CC I CV'!$B$4 -> 1806 | L37: ='t CC I CV'!L23*'График CC I CV'!$B$4 -> 2032 | M37: ='t CC I CV'!M23*'График CC I CV'!$B$4 -> 2258 | N37: ='t CC I CV'!N23*'График CC I CV'!$B$4 -> 2483 | O37: ='t CC I CV'!O23*'График CC I CV'!$B$4 -> 2709 | P37: ='t CC I CV'!P23*'График CC I CV'!$B$4 -> 2935 | Q37: ='t CC I CV'!Q23*'График CC I CV'!$B$4 -> 3161 | R37: ='t CC I CV'!R23*'График CC I CV'!$B$4 -> 3386 | S37: ='t CC I CV'!S23*'График CC I CV'!$B$4 -> 3612 | T37: ='t CC I CV'!T23*'График CC I CV'!$B$4 -> 3838 | U37: ='t CC I CV'!U23*'График CC I CV'!$B$4 -> 4064 | V37: ='t CC I CV'!V23*'График CC I CV'!$B$4 -> 4289 | W37: ='t CC I CV'!W23*'График CC I CV'!$B$4 -> 4515 | X37: ='t CC I CV'!X23*'График CC I CV'!$B$4 -> 4741 | Y37: ='t CC I CV'!Y23*'График CC I CV'!$B$4 -> 4967 | Z37: ='t CC I CV'!Z23*'График CC I CV'!$B$4 -> 5192 | AA37: ='t CC I CV'!AA23*'График CC I CV'!$B$4 -> 5418 | AB37: ='t CC I CV'!AB23*'График CC I CV'!$B$4 -> 5644 | AC37: ='t CC I CV'!AC23*'График CC I CV'!$B$4 -> 5870 | AD37: ='t CC I CV'!AD23*'График CC I CV'!$B$4 -> 6095 | AE37: ='t CC I CV'!AE23*'График CC I CV'!$B$4 -> 6321 | AF37: ='t CC I CV'!AF23*'График CC I CV'!$B$4 -> 6547 | AG37: ='t CC I CV'!AG23*'График CC I CV'!$B$4 -> 6773
A41: CC/CV | B41: Высота (см) | C41: Тип | D41: Модель | E41: Подключение | F41: Артикул заказа | T41: Длина, см
G42: 40 | H42: 50 | I42: 60 | J42: 70 | K42: 80 | L42: 90 | M42: 100 | N42: 110 | O42: 120 | P42: 130 | Q42: 140 | R42: 150 | S42: 160 | T42: 170 | U42: 180 | V42: 190 | W42: 200 | X42: 210 | Y42: 220 | Z42: 230 | AA42: 240 | AB42: 250 | AC42: 260 | AD42: 270 | AE42: 280 | AF42: 290 | AG42: 300
B43: 40 | C43: 10 | D43: Classic C / Classic CV(L) | E43: боковое / нижнее | F43: CC 10-4-XX / CV(L) 10-4-XX | G43: ='t CC I CV'!G30*'График CC I CV'!$B$4 -> 272 | H43: ='t CC I CV'!H30*'График CC I CV'!$B$4 -> 339 | I43: ='t CC I CV'!I30*'График CC I CV'!$B$4 -> 407 | J43: ='t CC I CV'!J30*'График CC I CV'!$B$4 -> 475 | K43: ='t CC I CV'!K30*'График CC I CV'!$B$4 -> 543 | L43: ='t CC I CV'!L30*'График CC I CV'!$B$4 -> 611 | M43: ='t CC I CV'!M30*'График CC I CV'!$B$4 -> 679 | N43: ='t CC I CV'!N30*'График CC I CV'!$B$4 -> 747 | O43: ='t CC I CV'!O30*'График CC I CV'!$B$4 -> 815 | P43: ='t CC I CV'!P30*'График CC I CV'!$B$4 -> 883 | Q43: ='t CC I CV'!Q30*'График CC I CV'!$B$4 -> 950 | R43: ='t CC I CV'!R30*'График CC I CV'!$B$4 -> 1018 | S43: ='t CC I CV'!S30*'График CC I CV'!$B$4 -> 1086 | T43: ='t CC I CV'!T30*'График CC I CV'!$B$4 -> 1154 | U43: ='t CC I CV'!U30*'График CC I CV'!$B$4 -> 1222 | V43: ='t CC I CV'!V30*'График CC I CV'!$B$4 -> 1290 | W43: ='t CC I CV'!W30*'График CC I CV'!$B$4 -> 1358 | X43: ='t CC I CV'!X30*'График CC I CV'!$B$4 -> 1426 | Y43: ='t CC I CV'!Y30*'График CC I CV'!$B$4 -> 1493 | Z43: ='t CC I CV'!Z30*'График CC I CV'!$B$4 -> 1561 | AA43: ='t CC I CV'!AA30*'График CC I CV'!$B$4 -> 1629 | AB43: ='t CC I CV'!AB30*'График CC I CV'!$B$4 -> 1697 | AC43: ='t CC I CV'!AC30*'График CC I CV'!$B$4 -> 1765 | AD43: ='t CC I CV'!AD30*'График CC I CV'!$B$4 -> 1833 | AE43: ='t CC I CV'!AE30*'График CC I CV'!$B$4 -> 1901 | AF43: ='t CC I CV'!AF30*'График CC I CV'!$B$4 -> 1969 | AG43: ='t CC I CV'!AG30*'График CC I CV'!$B$4 -> 2037
C45: 11 | D45: Classic C / Classic CV(L) | E45: боковое / нижнее | F45: CC 11-4-XX / CV(L) 11-4-XX | G45: ='t CC I CV'!G33*'График CC I CV'!$B$4 -> 395 | H45: ='t CC I CV'!H33*'График CC I CV'!$B$4 -> 494 | I45: ='t CC I CV'!I33*'График CC I CV'!$B$4 -> 592 | J45: ='t CC I CV'!J33*'График CC I CV'!$B$4 -> 691 | K45: ='t CC I CV'!K33*'График CC I CV'!$B$4 -> 790 | L45: ='t CC I CV'!L33*'График CC I CV'!$B$4 -> 889 | M45: ='t CC I CV'!M33*'График CC I CV'!$B$4 -> 987 | N45: ='t CC I CV'!N33*'График CC I CV'!$B$4 -> 1086 | O45: ='t CC I CV'!O33*'График CC I CV'!$B$4 -> 1185 | P45: ='t CC I CV'!P33*'График CC I CV'!$B$4 -> 1284 | Q45: ='t CC I CV'!Q33*'График CC I CV'!$B$4 -> 1382 | R45: ='t CC I CV'!R33*'График CC I CV'!$B$4 -> 1481 | S45: ='t CC I CV'!S33*'График CC I CV'!$B$4 -> 1580 | T45: ='t CC I CV'!T33*'График CC I CV'!$B$4 -> 1679 | U45: ='t CC I CV'!U33*'График CC I CV'!$B$4 -> 1777 | V45: ='t CC I CV'!V33*'График CC I CV'!$B$4 -> 1876 | W45: ='t CC I CV'!W33*'График CC I CV'!$B$4 -> 1975 | X45: ='t CC I CV'!X33*'График CC I CV'!$B$4 -> 2074 | Y45: ='t CC I CV'!Y33*'График CC I CV'!$B$4 -> 2172 | Z45: ='t CC I CV'!Z33*'График CC I CV'!$B$4 -> 2271 | AA45: ='t CC I CV'!AA33*'График CC I CV'!$B$4 -> 2370 | AB45: ='t CC I CV'!AB33*'График CC I CV'!$B$4 -> 2469 | AC45: ='t CC I CV'!AC33*'График CC I CV'!$B$4 -> 2567 | AD45: ='t CC I CV'!AD33*'График CC I CV'!$B$4 -> 2666 | AE45: ='t CC I CV'!AE33*'График CC I CV'!$B$4 -> 2765 | AF45: ='t CC I CV'!AF33*'График CC I CV'!$B$4 -> 2864 | AG45: ='t CC I CV'!AG33*'График CC I CV'!$B$4 -> 2962
C47: 20 | D47: Classic C / Classic CV(L) | E47: боковое / нижнее | F47: CC 20-4-XX / CV(L) 20-4-XX | G47: ='t CC I CV'!G36*'График CC I CV'!$B$4 -> 473 | H47: ='t CC I CV'!H36*'График CC I CV'!$B$4 -> 591 | I47: ='t CC I CV'!I36*'График CC I CV'!$B$4 -> 709 | J47: ='t CC I CV'!J36*'График CC I CV'!$B$4 -> 827 | K47: ='t CC I CV'!K36*'График CC I CV'!$B$4 -> 946 | L47: ='t CC I CV'!L36*'График CC I CV'!$B$4 -> 1064 | M47: ='t CC I CV'!M36*'График CC I CV'!$B$4 -> 1182 | N47: ='t CC I CV'!N36*'График CC I CV'!$B$4 -> 1300 | O47: ='t CC I CV'!O36*'График CC I CV'!$B$4 -> 1418 | P47: ='t CC I CV'!P36*'График CC I CV'!$B$4 -> 1537 | Q47: ='t CC I CV'!Q36*'График CC I CV'!$B$4 -> 1655 | R47: ='t CC I CV'!R36*'График CC I CV'!$B$4 -> 1773 | S47: ='t CC I CV'!S36*'График CC I CV'!$B$4 -> 1891 | T47: ='t CC I CV'!T36*'График CC I CV'!$B$4 -> 2009 | U47: ='t CC I CV'!U36*'График CC I CV'!$B$4 -> 2128 | V47: ='t CC I CV'!V36*'График CC I CV'!$B$4 -> 2246 | W47: ='t CC I CV'!W36*'График CC I CV'!$B$4 -> 2364 | X47: ='t CC I CV'!X36*'График CC I CV'!$B$4 -> 2482 | Y47: ='t CC I CV'!Y36*'График CC I CV'!$B$4 -> 2600 | Z47: ='t CC I CV'!Z36*'График CC I CV'!$B$4 -> 2718 | AA47: ='t CC I CV'!AA36*'График CC I CV'!$B$4 -> 2837 | AB47: ='t CC I CV'!AB36*'График CC I CV'!$B$4 -> 2955 | AC47: ='t CC I CV'!AC36*'График CC I CV'!$B$4 -> 3073 | AD47: ='t CC I CV'!AD36*'График CC I CV'!$B$4 -> 3191 | AE47: ='t CC I CV'!AE36*'График CC I CV'!$B$4 -> 3309 | AF47: ='t CC I CV'!AF36*'График CC I CV'!$B$4 -> 3428 | AG47: ='t CC I CV'!AG36*'График CC I CV'!$B$4 -> 3546
C49: 21 | D49: Classic C / Classic CV(L) | E49: боковое / нижнее | F49: CC 21-4-XX / CV(L) 21-4-XX | G49: ='t CC I CV'!G39*'График CC I CV'!$B$4 -> 592 | H49: ='t CC I CV'!H39*'График CC I CV'!$B$4 -> 740 | I49: ='t CC I CV'!I39*'График CC I CV'!$B$4 -> 888 | J49: ='t CC I CV'!J39*'График CC I CV'!$B$4 -> 1037 | K49: ='t CC I CV'!K39*'График CC I CV'!$B$4 -> 1185 | L49: ='t CC I CV'!L39*'График CC I CV'!$B$4 -> 1333 | M49: ='t CC I CV'!M39*'График CC I CV'!$B$4 -> 1481 | N49: ='t CC I CV'!N39*'График CC I CV'!$B$4 -> 1629 | O49: ='t CC I CV'!O39*'График CC I CV'!$B$4 -> 1777 | P49: ='t CC I CV'!P39*'График CC I CV'!$B$4 -> 1925 | Q49: ='t CC I CV'!Q39*'График CC I CV'!$B$4 -> 2073 | R49: ='t CC I CV'!R39*'График CC I CV'!$B$4 -> 2221 | S49: ='t CC I CV'!S39*'График CC I CV'!$B$4 -> 2369 | T49: ='t CC I CV'!T39*'График CC I CV'!$B$4 -> 2517 | U49: ='t CC I CV'!U39*'График CC I CV'!$B$4 -> 2665 | V49: ='t CC I CV'!V39*'График CC I CV'!$B$4 -> 2814 | W49: ='t CC I CV'!W39*'График CC I CV'!$B$4 -> 2962 | X49: ='t CC I CV'!X39*'График CC I CV'!$B$4 -> 3110 | Y49: ='t CC I CV'!Y39*'График CC I CV'!$B$4 -> 3258 | Z49: ='t CC I CV'!Z39*'График CC I CV'!$B$4 -> 3406 | AA49: ='t CC I CV'!AA39*'График CC I CV'!$B$4 -> 3554 | AB49: ='t CC I CV'!AB39*'График CC I CV'!$B$4 -> 3702 | AC49: ='t CC I CV'!AC39*'График CC I CV'!$B$4 -> 3850 | AD49: ='t CC I CV'!AD39*'График CC I CV'!$B$4 -> 3998 | AE49: ='t CC I CV'!AE39*'График CC I CV'!$B$4 -> 4146 | AF49: ='t CC I CV'!AF39*'График CC I CV'!$B$4 -> 4294 | AG49: ='t CC I CV'!AG39*'График CC I CV'!$B$4 -> 4442
C51: 22 | D51: Classic C / Classic CV(L) | E51: боковое / нижнее | F51: CC 22-4-XX / CV(L) 22-4-XX | G51: ='t CC I CV'!G42*'График CC I CV'!$B$4 -> 755 | H51: ='t CC I CV'!H42*'График CC I CV'!$B$4 -> 944 | I51: ='t CC I CV'!I42*'График CC I CV'!$B$4 -> 1133 | J51: ='t CC I CV'!J42*'График CC I CV'!$B$4 -> 1322 | K51: ='t CC I CV'!K42*'График CC I CV'!$B$4 -> 1511 | L51: ='t CC I CV'!L42*'График CC I CV'!$B$4 -> 1700 | M51: ='t CC I CV'!M42*'График CC I CV'!$B$4 -> 1889 | N51: ='t CC I CV'!N42*'График CC I CV'!$B$4 -> 2078 | O51: ='t CC I CV'!O42*'График CC I CV'!$B$4 -> 2266 | P51: ='t CC I CV'!P42*'График CC I CV'!$B$4 -> 2455 | Q51: ='t CC I CV'!Q42*'График CC I CV'!$B$4 -> 2644 | R51: ='t CC I CV'!R42*'График CC I CV'!$B$4 -> 2833 | S51: ='t CC I CV'!S42*'График CC I CV'!$B$4 -> 3022 | T51: ='t CC I CV'!T42*'График CC I CV'!$B$4 -> 3211 | U51: ='t CC I CV'!U42*'График CC I CV'!$B$4 -> 3400 | V51: ='t CC I CV'!V42*'График CC I CV'!$B$4 -> 3588 | W51: ='t CC I CV'!W42*'График CC I CV'!$B$4 -> 3777 | X51: ='t CC I CV'!X42*'График CC I CV'!$B$4 -> 3966 | Y51: ='t CC I CV'!Y42*'График CC I CV'!$B$4 -> 4155 | Z51: ='t CC I CV'!Z42*'График CC I CV'!$B$4 -> 4344 | AA51: ='t CC I CV'!AA42*'График CC I CV'!$B$4 -> 4533 | AB51: ='t CC I CV'!AB42*'График CC I CV'!$B$4 -> 4722 | AC51: ='t CC I CV'!AC42*'График CC I CV'!$B$4 -> 4911 | AD51: ='t CC I CV'!AD42*'График CC I CV'!$B$4 -> 5099 | AE51: ='t CC I CV'!AE42*'График CC I CV'!$B$4 -> 5288 | AF51: ='t CC I CV'!AF42*'График CC I CV'!$B$4 -> 5477 | AG51: ='t CC I CV'!AG42*'График CC I CV'!$B$4 -> 5666
C53: 33 | D53: Classic C / Classic CV(L) | E53: боковое / нижнее | F53: CC 33-4-XX / CV(L) 33-4-XX | G53: ='t CC I CV'!G48*'График CC I CV'!$B$4 -> 1082 | H53: ='t CC I CV'!H48*'График CC I CV'!$B$4 -> 1352 | I53: ='t CC I CV'!I48*'График CC I CV'!$B$4 -> 1622 | J53: ='t CC I CV'!J48*'График CC I CV'!$B$4 -> 1893 | K53: ='t CC I CV'!K48*'График CC I CV'!$B$4 -> 2163 | L53: ='t CC I CV'!L48*'График CC I CV'!$B$4 -> 2434 | M53: ='t CC I CV'!M48*'График CC I CV'!$B$4 -> 2704 | N53: ='t CC I CV'!N48*'График CC I CV'!$B$4 -> 2975 | O53: ='t CC I CV'!O48*'График CC I CV'!$B$4 -> 3245 | P53: ='t CC I CV'!P48*'График CC I CV'!$B$4 -> 3515 | Q53: ='t CC I CV'!Q48*'График CC I CV'!$B$4 -> 3786 | R53: ='t CC I CV'!R48*'График CC I CV'!$B$4 -> 4056 | S53: ='t CC I CV'!S48*'График CC I CV'!$B$4 -> 4372 | T53: ='t CC I CV'!T48*'График CC I CV'!$B$4 -> 4597 | U53: ='t CC I CV'!U48*'График CC I CV'!$B$4 -> 4867 | V53: ='t CC I CV'!V48*'График CC I CV'!$B$4 -> 5138 | W53: ='t CC I CV'!W48*'График CC I CV'!$B$4 -> 5408 | X53: ='t CC I CV'!X48*'График CC I CV'!$B$4 -> 5679 | Y53: ='t CC I CV'!Y48*'График CC I CV'!$B$4 -> 5949 | Z53: ='t CC I CV'!Z48*'График CC I CV'!$B$4 -> 6219 | AA53: ='t CC I CV'!AA48*'График CC I CV'!$B$4 -> 6490 | AB53: ='t CC I CV'!AB48*'График CC I CV'!$B$4 -> 6760 | AC53: ='t CC I CV'!AC48*'График CC I CV'!$B$4 -> 7031 | AD53: ='t CC I CV'!AD48*'График CC I CV'!$B$4 -> 7301 | AE53: ='t CC I CV'!AE48*'График CC I CV'!$B$4 -> 7572 | AF53: ='t CC I CV'!AF48*'График CC I CV'!$B$4 -> 7842 | AG53: ='t CC I CV'!AG48*'График CC I CV'!$B$4 -> 8112
A57: CC/CV | B57: Высота (см) | C57: Тип | D57: Модель | E57: Подключение | F57: Артикул заказа | T57: Длина, см
G58: 40 | H58: 50 | I58: 60 | J58: 70 | K58: 80 | L58: 90 | M58: 100 | N58: 110 | O58: 120 | P58: 130 | Q58: 140 | R58: 150 | S58: 160 | T58: 170 | U58: 180 | V58: 190 | W58: 200 | X58: 210 | Y58: 220 | Z58: 230 | AA58: 240 | AB58: 250 | AC58: 260 | AD58: 270 | AE58: 280 | AF58: 290 | AG58: 300
B59: 40 | C59: 10 | D59: Classic CH / Classic CV(L)H | E59: боковое / нижнее | F59: CCH 10-4-XX / CV(L)H 10-4-XX | G59: ='t CC I CV'!G30*'График CC I CV'!$B$4 -> 272 | H59: ='t CC I CV'!H30*'График CC I CV'!$B$4 -> 339 | I59: ='t CC I CV'!I30*'График CC I CV'!$B$4 -> 407 | J59: ='t CC I CV'!J30*'График CC I CV'!$B$4 -> 475 | K59: ='t CC I CV'!K30*'График CC I CV'!$B$4 -> 543 | L59: ='t CC I CV'!L30*'График CC I CV'!$B$4 -> 611 | M59: ='t CC I CV'!M30*'График CC I CV'!$B$4 -> 679 | N59: ='t CC I CV'!N30*'График CC I CV'!$B$4 -> 747 | O59: ='t CC I CV'!O30*'График CC I CV'!$B$4 -> 815 | P59: ='t CC I CV'!P30*'График CC I CV'!$B$4 -> 883 | Q59: ='t CC I CV'!Q30*'График CC I CV'!$B$4 -> 950 | R59: ='t CC I CV'!R30*'График CC I CV'!$B$4 -> 1018 | S59: ='t CC I CV'!S30*'График CC I CV'!$B$4 -> 1086 | T59: ='t CC I CV'!T30*'График CC I CV'!$B$4 -> 1154 | U59: ='t CC I CV'!U30*'График CC I CV'!$B$4 -> 1222 | V59: ='t CC I CV'!V30*'График CC I CV'!$B$4 -> 1290 | W59: ='t CC I CV'!W30*'График CC I CV'!$B$4 -> 1358 | X59: ='t CC I CV'!X30*'График CC I CV'!$B$4 -> 1426 | Y59: ='t CC I CV'!Y30*'График CC I CV'!$B$4 -> 1493 | Z59: ='t CC I CV'!Z30*'График CC I CV'!$B$4 -> 1561 | AA59: ='t CC I CV'!AA30*'График CC I CV'!$B$4 -> 1629 | AB59: ='t CC I CV'!AB30*'График CC I CV'!$B$4 -> 1697 | AC59: ='t CC I CV'!AC30*'График CC I CV'!$B$4 -> 1765 | AD59: ='t CC I CV'!AD30*'График CC I CV'!$B$4 -> 1833 | AE59: ='t CC I CV'!AE30*'График CC I CV'!$B$4 -> 1901 | AF59: ='t CC I CV'!AF30*'График CC I CV'!$B$4 -> 1969 | AG59: ='t CC I CV'!AG30*'График CC I CV'!$B$4 -> 2037
C61: 11 | D61: Classic C / Classic CV(L) | E61: боковое / нижнее | F61: CC 11-4-XX / CV(L) 11-4-XX | G61: ='t CC I CV'!G33*'График CC I CV'!$B$4 -> 395 | H61: ='t CC I CV'!H33*'График CC I CV'!$B$4 -> 494 | I61: ='t CC I CV'!I33*'График CC I CV'!$B$4 -> 592 | J61: ='t CC I CV'!J33*'График CC I CV'!$B$4 -> 691 | K61: ='t CC I CV'!K33*'График CC I CV'!$B$4 -> 790 | L61: ='t CC I CV'!L33*'График CC I CV'!$B$4 -> 889 | M61: ='t CC I CV'!M33*'График CC I CV'!$B$4 -> 987 | N61: ='t CC I CV'!N33*'График CC I CV'!$B$4 -> 1086 | O61: ='t CC I CV'!O33*'График CC I CV'!$B$4 -> 1185 | P61: ='t CC I CV'!P33*'График CC I CV'!$B$4 -> 1284 | Q61: ='t CC I CV'!Q33*'График CC I CV'!$B$4 -> 1382 | R61: ='t CC I CV'!R33*'График CC I CV'!$B$4 -> 1481 | S61: ='t CC I CV'!S33*'График CC I CV'!$B$4 -> 1580 | T61: ='t CC I CV'!T33*'График CC I CV'!$B$4 -> 1679 | U61: ='t CC I CV'!U33*'График CC I CV'!$B$4 -> 1777 | V61: ='t CC I CV'!V33*'График CC I CV'!$B$4 -> 1876 | W61: ='t CC I CV'!W33*'График CC I CV'!$B$4 -> 1975 | X61: ='t CC I CV'!X33*'График CC I CV'!$B$4 -> 2074 | Y61: ='t CC I CV'!Y33*'График CC I CV'!$B$4 -> 2172 | Z61: ='t CC I CV'!Z33*'График CC I CV'!$B$4 -> 2271 | AA61: ='t CC I CV'!AA33*'График CC I CV'!$B$4 -> 2370 | AB61: ='t CC I CV'!AB33*'График CC I CV'!$B$4 -> 2469 | AC61: ='t CC I CV'!AC33*'График CC I CV'!$B$4 -> 2567 | AD61: ='t CC I CV'!AD33*'График CC I CV'!$B$4 -> 2666 | AE61: ='t CC I CV'!AE33*'График CC I CV'!$B$4 -> 2765 | AF61: ='t CC I CV'!AF33*'График CC I CV'!$B$4 -> 2864 | AG61: ='t CC I CV'!AG33*'График CC I CV'!$B$4 -> 2962
C63: 20 | D63: Classic CH / Classic CV(L)H | E63: боковое / нижнее | F63: CCH 20-4-XX / CV(L)H 20-4-XX | G63: ='t CC I CV'!G36*'График CC I CV'!$B$4 -> 473 | H63: ='t CC I CV'!H36*'График CC I CV'!$B$4 -> 591 | I63: ='t CC I CV'!I36*'График CC I CV'!$B$4 -> 709 | J63: ='t CC I CV'!J36*'График CC I CV'!$B$4 -> 827 | K63: ='t CC I CV'!K36*'График CC I CV'!$B$4 -> 946 | L63: ='t CC I CV'!L36*'График CC I CV'!$B$4 -> 1064 | M63: ='t CC I CV'!M36*'График CC I CV'!$B$4 -> 1182 | N63: ='t CC I CV'!N36*'График CC I CV'!$B$4 -> 1300 | O63: ='t CC I CV'!O36*'График CC I CV'!$B$4 -> 1418 | P63: ='t CC I CV'!P36*'График CC I CV'!$B$4 -> 1537 | Q63: ='t CC I CV'!Q36*'График CC I CV'!$B$4 -> 1655 | R63: ='t CC I CV'!R36*'График CC I CV'!$B$4 -> 1773 | S63: ='t CC I CV'!S36*'График CC I CV'!$B$4 -> 1891 | T63: ='t CC I CV'!T36*'График CC I CV'!$B$4 -> 2009 | U63: ='t CC I CV'!U36*'График CC I CV'!$B$4 -> 2128 | V63: ='t CC I CV'!V36*'График CC I CV'!$B$4 -> 2246 | W63: ='t CC I CV'!W36*'График CC I CV'!$B$4 -> 2364 | X63: ='t CC I CV'!X36*'График CC I CV'!$B$4 -> 2482 | Y63: ='t CC I CV'!Y36*'График CC I CV'!$B$4 -> 2600 | Z63: ='t CC I CV'!Z36*'График CC I CV'!$B$4 -> 2718 | AA63: ='t CC I CV'!AA36*'График CC I CV'!$B$4 -> 2837 | AB63: ='t CC I CV'!AB36*'График CC I CV'!$B$4 -> 2955 | AC63: ='t CC I CV'!AC36*'График CC I CV'!$B$4 -> 3073 | AD63: ='t CC I CV'!AD36*'График CC I CV'!$B$4 -> 3191 | AE63: ='t CC I CV'!AE36*'График CC I CV'!$B$4 -> 3309 | AF63: ='t CC I CV'!AF36*'График CC I CV'!$B$4 -> 3428 | AG63: ='t CC I CV'!AG36*'График CC I CV'!$B$4 -> 3546
C65: 21 | D65: Classic C / Classic CV(L) | E65: боковое / нижнее | F65: CC 21-4-XX / CV(L) 21-4-XX | G65: ='t CC I CV'!G39*'График CC I CV'!$B$4 -> 592 | H65: ='t CC I CV'!H39*'График CC I CV'!$B$4 -> 740 | I65: ='t CC I CV'!I39*'График CC I CV'!$B$4 -> 888 | J65: ='t CC I CV'!J39*'График CC I CV'!$B$4 -> 1037 | K65: ='t CC I CV'!K39*'График CC I CV'!$B$4 -> 1185 | L65: ='t CC I CV'!L39*'График CC I CV'!$B$4 -> 1333 | M65: ='t CC I CV'!M39*'График CC I CV'!$B$4 -> 1481 | N65: ='t CC I CV'!N39*'График CC I CV'!$B$4 -> 1629 | O65: ='t CC I CV'!O39*'График CC I CV'!$B$4 -> 1777 | P65: ='t CC I CV'!P39*'График CC I CV'!$B$4 -> 1925 | Q65: ='t CC I CV'!Q39*'График CC I CV'!$B$4 -> 2073 | R65: ='t CC I CV'!R39*'График CC I CV'!$B$4 -> 2221 | S65: ='t CC I CV'!S39*'График CC I CV'!$B$4 -> 2369 | T65: ='t CC I CV'!T39*'График CC I CV'!$B$4 -> 2517 | U65: ='t CC I CV'!U39*'График CC I CV'!$B$4 -> 2665 | V65: ='t CC I CV'!V39*'График CC I CV'!$B$4 -> 2814 | W65: ='t CC I CV'!W39*'График CC I CV'!$B$4 -> 2962 | X65: ='t CC I CV'!X39*'График CC I CV'!$B$4 -> 3110 | Y65: ='t CC I CV'!Y39*'График CC I CV'!$B$4 -> 3258 | Z65: ='t CC I CV'!Z39*'График CC I CV'!$B$4 -> 3406 | AA65: ='t CC I CV'!AA39*'График CC I CV'!$B$4 -> 3554 | AB65: ='t CC I CV'!AB39*'График CC I CV'!$B$4 -> 3702 | AC65: ='t CC I CV'!AC39*'График CC I CV'!$B$4 -> 3850 | AD65: ='t CC I CV'!AD39*'График CC I CV'!$B$4 -> 3998 | AE65: ='t CC I CV'!AE39*'График CC I CV'!$B$4 -> 4146 | AF65: ='t CC I CV'!AF39*'График CC I CV'!$B$4 -> 4294 | AG65: ='t CC I CV'!AG39*'График CC I CV'!$B$4 -> 4442
C67: 22 | D67: Classic C / Classic CV(L) | E67: боковое / нижнее | F67: CC 22-4-XX / CV(L) 22-4-XX | G67: ='t CC I CV'!G42*'График CC I CV'!$B$4 -> 755 | H67: ='t CC I CV'!H42*'График CC I CV'!$B$4 -> 944 | I67: ='t CC I CV'!I42*'График CC I CV'!$B$4 -> 1133 | J67: ='t CC I CV'!J42*'График CC I CV'!$B$4 -> 1322 | K67: ='t CC I CV'!K42*'График CC I CV'!$B$4 -> 1511 | L67: ='t CC I CV'!L42*'График CC I CV'!$B$4 -> 1700 | M67: ='t CC I CV'!M42*'График CC I CV'!$B$4 -> 1889 | N67: ='t CC I CV'!N42*'График CC I CV'!$B$4 -> 2078 | O67: ='t CC I CV'!O42*'График CC I CV'!$B$4 -> 2266 | P67: ='t CC I CV'!P42*'График CC I CV'!$B$4 -> 2455 | Q67: ='t CC I CV'!Q42*'График CC I CV'!$B$4 -> 2644 | R67: ='t CC I CV'!R42*'График CC I CV'!$B$4 -> 2833 | S67: ='t CC I CV'!S42*'График CC I CV'!$B$4 -> 3022 | T67: ='t CC I CV'!T42*'График CC I CV'!$B$4 -> 3211 | U67: ='t CC I CV'!U42*'График CC I CV'!$B$4 -> 3400 | V67: ='t CC I CV'!V42*'График CC I CV'!$B$4 -> 3588 | W67: ='t CC I CV'!W42*'График CC I CV'!$B$4 -> 3777 | X67: ='t CC I CV'!X42*'График CC I CV'!$B$4 -> 3966 | Y67: ='t CC I CV'!Y42*'График CC I CV'!$B$4 -> 4155 | Z67: ='t CC I CV'!Z42*'График CC I CV'!$B$4 -> 4344 | AA67: ='t CC I CV'!AA42*'График CC I CV'!$B$4 -> 4533 | AB67: ='t CC I CV'!AB42*'График CC I CV'!$B$4 -> 4722 | AC67: ='t CC I CV'!AC42*'График CC I CV'!$B$4 -> 4911 | AD67: ='t CC I CV'!AD42*'График CC I CV'!$B$4 -> 5099 | AE67: ='t CC I CV'!AE42*'График CC I CV'!$B$4 -> 5288 | AF67: ='t CC I CV'!AF42*'График CC I CV'!$B$4 -> 5477 | AG67: ='t CC I CV'!AG42*'График CC I CV'!$B$4 -> 5666
C69: 30 | D69: Classic CH / Classic CV(L)H | E69: боковое / нижнее | F69: CCH 30-4-XX / CV(L)H 30-4-XX | G69: ='t CC I CV'!G45*'График CC I CV'!$B$4 -> 732 | H69: ='t CC I CV'!H45*'График CC I CV'!$B$4 -> 914 | I69: ='t CC I CV'!I45*'График CC I CV'!$B$4 -> 1097 | J69: ='t CC I CV'!J45*'График CC I CV'!$B$4 -> 1280 | K69: ='t CC I CV'!K45*'График CC I CV'!$B$4 -> 1463 | L69: ='t CC I CV'!L45*'График CC I CV'!$B$4 -> 1645 | M69: ='t CC I CV'!M45*'График CC I CV'!$B$4 -> 1829 | N69: ='t CC I CV'!N45*'График CC I CV'!$B$4 -> 2012 | O69: ='t CC I CV'!O45*'График CC I CV'!$B$4 -> 2196 | P69: ='t CC I CV'!P45*'График CC I CV'!$B$4 -> 2378 | Q69: ='t CC I CV'!Q45*'График CC I CV'!$B$4 -> 2560 | R69: ='t CC I CV'!R45*'График CC I CV'!$B$4 -> 2743 | S69: ='t CC I CV'!S45*'График CC I CV'!$B$4 -> 2926 | T69: ='t CC I CV'!T45*'График CC I CV'!$B$4 -> 3109 | U69: ='t CC I CV'!U45*'График CC I CV'!$B$4 -> 3292 | V69: ='t CC I CV'!V45*'График CC I CV'!$B$4 -> 3474 | W69: ='t CC I CV'!W45*'График CC I CV'!$B$4 -> 3658 | X69: ='t CC I CV'!X45*'График CC I CV'!$B$4 -> 3841 | Y69: ='t CC I CV'!Y45*'График CC I CV'!$B$4 -> 4023 | Z69: ='t CC I CV'!Z45*'График CC I CV'!$B$4 -> 4207 | AA69: ='t CC I CV'!AA45*'График CC I CV'!$B$4 -> 4388 | AB69: ='t CC I CV'!AB45*'График CC I CV'!$B$4 -> 4570 | AC69: ='t CC I CV'!AC45*'График CC I CV'!$B$4 -> 4755 | AD69: ='t CC I CV'!AD45*'График CC I CV'!$B$4 -> 4937 | AE69: ='t CC I CV'!AE45*'График CC I CV'!$B$4 -> 5120 | AF69: ='t CC I CV'!AF45*'График CC I CV'!$B$4 -> 5302 | AG69: ='t CC I CV'!AG45*'График CC I CV'!$B$4 -> 5486
C71: 33 | D71: Classic C / Classic CV(L) | E71: боковое / нижнее | F71: CC 33-4-XX / CV(L) 33-4-XX | G71: ='t CC I CV'!G48*'График CC I CV'!$B$4 -> 1082 | H71: ='t CC I CV'!H48*'График CC I CV'!$B$4 -> 1352 | I71: ='t CC I CV'!I48*'График CC I CV'!$B$4 -> 1622 | J71: ='t CC I CV'!J48*'График CC I CV'!$B$4 -> 1893 | K71: ='t CC I CV'!K48*'График CC I CV'!$B$4 -> 2163 | L71: ='t CC I CV'!L48*'График CC I CV'!$B$4 -> 2434 | M71: ='t CC I CV'!M48*'График CC I CV'!$B$4 -> 2704 | N71: ='t CC I CV'!N48*'График CC I CV'!$B$4 -> 2975 | O71: ='t CC I CV'!O48*'График CC I CV'!$B$4 -> 3245 | P71: ='t CC I CV'!P48*'График CC I CV'!$B$4 -> 3515 | Q71: ='t CC I CV'!Q48*'График CC I CV'!$B$4 -> 3786 | R71: ='t CC I CV'!R48*'График CC I CV'!$B$4 -> 4056 | S71: ='t CC I CV'!S48*'График CC I CV'!$B$4 -> 4372 | T71: ='t CC I CV'!T48*'График CC I CV'!$B$4 -> 4597 | U71: ='t CC I CV'!U48*'График CC I CV'!$B$4 -> 4867 | V71: ='t CC I CV'!V48*'График CC I CV'!$B$4 -> 5138 | W71: ='t CC I CV'!W48*'График CC I CV'!$B$4 -> 5408 | X71: ='t CC I CV'!X48*'График CC I CV'!$B$4 -> 5679 | Y71: ='t CC I CV'!Y48*'График CC I CV'!$B$4 -> 5949 | Z71: ='t CC I CV'!Z48*'График CC I CV'!$B$4 -> 6219 | AA71: ='t CC I CV'!AA48*'График CC I CV'!$B$4 -> 6490 | AB71: ='t CC I CV'!AB48*'График CC I CV'!$B$4 -> 6760 | AC71: ='t CC I CV'!AC48*'График CC I CV'!$B$4 -> 7031 | AD71: ='t CC I CV'!AD48*'График CC I CV'!$B$4 -> 7301 | AE71: ='t CC I CV'!AE48*'График CC I CV'!$B$4 -> 7572 | AF71: ='t CC I CV'!AF48*'График CC I CV'!$B$4 -> 7842 | AG71: ='t CC I CV'!AG48*'График CC I CV'!$B$4 -> 8112
A75: CC/CV | B75: Высота (см) | C75: Тип | D75: Модель | E75: Подключение | F75: Артикул заказа | T75: Длина, см
G76: 40 | H76: 50 | I76: 60 | J76: 70 | K76: 80 | L76: 90 | M76: 100 | N76: 110 | O76: 120 | P76: 130 | Q76: 140 | R76: 150 | S76: 160 | T76: 170 | U76: 180 | V76: 190 | W76: 200 | X76: 210 | Y76: 220 | Z76: 230 | AA76: 240 | AB76: 250 | AC76: 260 | AD76: 270 | AE76: 280 | AF76: 290 | AG76: 300
B77: 50 | C77: 10 | D77: Classic CH / Classic CV(L)H | E77: боковое / нижнее | F77: CCH 10-5-XX / CV(L)H 10-5-XX | G77: ='t CC I CV'!G55*'График CC I CV'!$B$4 -> 350 | H77: ='t CC I CV'!H55*'График CC I CV'!$B$4 -> 437 | I77: ='t CC I CV'!I55*'График CC I CV'!$B$4 -> 524 | J77: ='t CC I CV'!J55*'График CC I CV'!$B$4 -> 612 | K77: ='t CC I CV'!K55*'График CC I CV'!$B$4 -> 699 | L77: ='t CC I CV'!L55*'График CC I CV'!$B$4 -> 786 | M77: ='t CC I CV'!M55*'График CC I CV'!$B$4 -> 874 | N77: ='t CC I CV'!N55*'График CC I CV'!$B$4 -> 961 | O77: ='t CC I CV'!O55*'График CC I CV'!$B$4 -> 1049 | P77: ='t CC I CV'!P55*'График CC I CV'!$B$4 -> 1136 | Q77: ='t CC I CV'!Q55*'График CC I CV'!$B$4 -> 1223 | R77: ='t CC I CV'!R55*'График CC I CV'!$B$4 -> 1311 | S77: ='t CC I CV'!S55*'График CC I CV'!$B$4 -> 1398 | T77: ='t CC I CV'!T55*'График CC I CV'!$B$4 -> 1485 | U77: ='t CC I CV'!U55*'График CC I CV'!$B$4 -> 1573 | V77: ='t CC I CV'!V55*'График CC I CV'!$B$4 -> 1660 | W77: ='t CC I CV'!W55*'График CC I CV'!$B$4 -> 1748 | X77: ='t CC I CV'!X55*'График CC I CV'!$B$4 -> 1835 | Y77: ='t CC I CV'!Y55*'График CC I CV'!$B$4 -> 1922 | Z77: ='t CC I CV'!Z55*'График CC I CV'!$B$4 -> 2010 | AA77: ='t CC I CV'!AA55*'График CC I CV'!$B$4 -> 2097 | AB77: ='t CC I CV'!AB55*'График CC I CV'!$B$4 -> 2185 | AC77: ='t CC I CV'!AC55*'График CC I CV'!$B$4 -> 2272 | AD77: ='t CC I CV'!AD55*'График CC I CV'!$B$4 -> 2359 | AE77: ='t CC I CV'!AE55*'График CC I CV'!$B$4 -> 2447 | AF77: ='t CC I CV'!AF55*'График CC I CV'!$B$4 -> 2534 | AG77: ='t CC I CV'!AG55*'График CC I CV'!$B$4 -> 2621
C79: 11 | D79: Classic C / Classic CV(L) | E79: боковое / нижнее | F79: CC 11-5-XX / CV(L) 11-5-XX | G79: ='t CC I CV'!G58*'График CC I CV'!$B$4 -> 517 | H79: ='t CC I CV'!H58*'График CC I CV'!$B$4 -> 646 | I79: ='t CC I CV'!I58*'График CC I CV'!$B$4 -> 776 | J79: ='t CC I CV'!J58*'График CC I CV'!$B$4 -> 905 | K79: ='t CC I CV'!K58*'График CC I CV'!$B$4 -> 1034 | L79: ='t CC I CV'!L58*'График CC I CV'!$B$4 -> 1164 | M79: ='t CC I CV'!M58*'График CC I CV'!$B$4 -> 1293 | N79: ='t CC I CV'!N58*'График CC I CV'!$B$4 -> 1422 | O79: ='t CC I CV'!O58*'График CC I CV'!$B$4 -> 1551 | P79: ='t CC I CV'!P58*'График CC I CV'!$B$4 -> 1681 | Q79: ='t CC I CV'!Q58*'График CC I CV'!$B$4 -> 1810 | R79: ='t CC I CV'!R58*'График CC I CV'!$B$4 -> 1939 | S79: ='t CC I CV'!S58*'График CC I CV'!$B$4 -> 2068 | T79: ='t CC I CV'!T58*'График CC I CV'!$B$4 -> 2198 | U79: ='t CC I CV'!U58*'График CC I CV'!$B$4 -> 2327 | V79: ='t CC I CV'!V58*'График CC I CV'!$B$4 -> 2456 | W79: ='t CC I CV'!W58*'График CC I CV'!$B$4 -> 2586 | X79: ='t CC I CV'!X58*'График CC I CV'!$B$4 -> 2715 | Y79: ='t CC I CV'!Y58*'График CC I CV'!$B$4 -> 2844 | Z79: ='t CC I CV'!Z58*'График CC I CV'!$B$4 -> 2973 | AA79: ='t CC I CV'!AA58*'График CC I CV'!$B$4 -> 3102 | AB79: ='t CC I CV'!AB58*'График CC I CV'!$B$4 -> 3232 | AC79: ='t CC I CV'!AC58*'График CC I CV'!$B$4 -> 3361 | AD79: ='t CC I CV'!AD58*'График CC I CV'!$B$4 -> 3491 | AE79: ='t CC I CV'!AE58*'График CC I CV'!$B$4 -> 3620 | AF79: ='t CC I CV'!AF58*'График CC I CV'!$B$4 -> 3749 | AG79: ='t CC I CV'!AG58*'График CC I CV'!$B$4 -> 3878
C81: 20 | D81: Classic CH / Classic CV(L)H | E81: боковое / нижнее | F81: CCH 20-5-XX / CV(L)H 20-5-XX | G81: ='t CC I CV'!G61*'График CC I CV'!$B$4 -> 578 | H81: ='t CC I CV'!H61*'График CC I CV'!$B$4 -> 723 | I81: ='t CC I CV'!I61*'График CC I CV'!$B$4 -> 867 | J81: ='t CC I CV'!J61*'График CC I CV'!$B$4 -> 1012 | K81: ='t CC I CV'!K61*'График CC I CV'!$B$4 -> 1156 | L81: ='t CC I CV'!L61*'График CC I CV'!$B$4 -> 1301 | M81: ='t CC I CV'!M61*'График CC I CV'!$B$4 -> 1445 | N81: ='t CC I CV'!N61*'График CC I CV'!$B$4 -> 1590 | O81: ='t CC I CV'!O61*'График CC I CV'!$B$4 -> 1734 | P81: ='t CC I CV'!P61*'График CC I CV'!$B$4 -> 1879 | Q81: ='t CC I CV'!Q61*'График CC I CV'!$B$4 -> 2023 | R81: ='t CC I CV'!R61*'График CC I CV'!$B$4 -> 2168 | S81: ='t CC I CV'!S61*'График CC I CV'!$B$4 -> 2312 | T81: ='t CC I CV'!T61*'График CC I CV'!$B$4 -> 2457 | U81: ='t CC I CV'!U61*'График CC I CV'!$B$4 -> 2602 | V81: ='t CC I CV'!V61*'График CC I CV'!$B$4 -> 2746 | W81: ='t CC I CV'!W61*'График CC I CV'!$B$4 -> 2891 | X81: ='t CC I CV'!X61*'График CC I CV'!$B$4 -> 3035 | Y81: ='t CC I CV'!Y61*'График CC I CV'!$B$4 -> 3180 | Z81: ='t CC I CV'!Z61*'График CC I CV'!$B$4 -> 3324 | AA81: ='t CC I CV'!AA61*'График CC I CV'!$B$4 -> 3469 | AB81: ='t CC I CV'!AB61*'График CC I CV'!$B$4 -> 3613 | AC81: ='t CC I CV'!AC61*'График CC I CV'!$B$4 -> 3758 | AD81: ='t CC I CV'!AD61*'График CC I CV'!$B$4 -> 3902 | AE81: ='t CC I CV'!AE61*'График CC I CV'!$B$4 -> 4047 | AF81: ='t CC I CV'!AF61*'График CC I CV'!$B$4 -> 4191 | AG81: ='t CC I CV'!AG61*'График CC I CV'!$B$4 -> 4336
C83: 21 | D83: Classic C / Classic CV(L) | E83: боковое / нижнее | F83: CC 21-5-XX / CV(L) 21-5-XX | G83: ='t CC I CV'!G64*'График CC I CV'!$B$4 -> 738 | H83: ='t CC I CV'!H64*'График CC I CV'!$B$4 -> 923 | I83: ='t CC I CV'!I64*'График CC I CV'!$B$4 -> 1107 | J83: ='t CC I CV'!J64*'График CC I CV'!$B$4 -> 1292 | K83: ='t CC I CV'!K64*'График CC I CV'!$B$4 -> 1476 | L83: ='t CC I CV'!L64*'График CC I CV'!$B$4 -> 1661 | M83: ='t CC I CV'!M64*'График CC I CV'!$B$4 -> 1845 | N83: ='t CC I CV'!N64*'График CC I CV'!$B$4 -> 2030 | O83: ='t CC I CV'!O64*'График CC I CV'!$B$4 -> 2214 | P83: ='t CC I CV'!P64*'График CC I CV'!$B$4 -> 2399 | Q83: ='t CC I CV'!Q64*'График CC I CV'!$B$4 -> 2583 | R83: ='t CC I CV'!R64*'График CC I CV'!$B$4 -> 2768 | S83: ='t CC I CV'!S64*'График CC I CV'!$B$4 -> 2952 | T83: ='t CC I CV'!T64*'График CC I CV'!$B$4 -> 3137 | U83: ='t CC I CV'!U64*'График CC I CV'!$B$4 -> 3321 | V83: ='t CC I CV'!V64*'График CC I CV'!$B$4 -> 3506 | W83: ='t CC I CV'!W64*'График CC I CV'!$B$4 -> 3690 | X83: ='t CC I CV'!X64*'График CC I CV'!$B$4 -> 3875 | Y83: ='t CC I CV'!Y64*'График CC I CV'!$B$4 -> 4059 | Z83: ='t CC I CV'!Z64*'График CC I CV'!$B$4 -> 4244 | AA83: ='t CC I CV'!AA64*'График CC I CV'!$B$4 -> 4428 | AB83: ='t CC I CV'!AB64*'График CC I CV'!$B$4 -> 4613 | AC83: ='t CC I CV'!AC64*'График CC I CV'!$B$4 -> 4797 | AD83: ='t CC I CV'!AD64*'График CC I CV'!$B$4 -> 4982 | AE83: ='t CC I CV'!AE64*'График CC I CV'!$B$4 -> 5166 | AF83: ='t CC I CV'!AF64*'График CC I CV'!$B$4 -> 5351 | AG83: ='t CC I CV'!AG64*'График CC I CV'!$B$4 -> 5535
C85: 22 | D85: Classic C / Classic CV(L) | E85: боковое / нижнее | F85: CC 22-5-XX / CV(L) 22-5-XX | G85: ='t CC I CV'!G67*'График CC I CV'!$B$4 -> 961 | H85: ='t CC I CV'!H67*'График CC I CV'!$B$4 -> 1202 | I85: ='t CC I CV'!I67*'График CC I CV'!$B$4 -> 1442 | J85: ='t CC I CV'!J67*'График CC I CV'!$B$4 -> 1683 | K85: ='t CC I CV'!K67*'График CC I CV'!$B$4 -> 1923 | L85: ='t CC I CV'!L67*'График CC I CV'!$B$4 -> 2163 | M85: ='t CC I CV'!M67*'График CC I CV'!$B$4 -> 2404 | N85: ='t CC I CV'!N67*'График CC I CV'!$B$4 -> 2644 | O85: ='t CC I CV'!O67*'График CC I CV'!$B$4 -> 2884 | P85: ='t CC I CV'!P67*'График CC I CV'!$B$4 -> 3125 | Q85: ='t CC I CV'!Q67*'График CC I CV'!$B$4 -> 3365 | R85: ='t CC I CV'!R67*'График CC I CV'!$B$4 -> 3605 | S85: ='t CC I CV'!S67*'График CC I CV'!$B$4 -> 3846 | T85: ='t CC I CV'!T67*'График CC I CV'!$B$4 -> 4086 | U85: ='t CC I CV'!U67*'График CC I CV'!$B$4 -> 4327 | V85: ='t CC I CV'!V67*'График CC I CV'!$B$4 -> 4567 | W85: ='t CC I CV'!W67*'График CC I CV'!$B$4 -> 4807 | X85: ='t CC I CV'!X67*'График CC I CV'!$B$4 -> 5048 | Y85: ='t CC I CV'!Y67*'График CC I CV'!$B$4 -> 5288 | Z85: ='t CC I CV'!Z67*'График CC I CV'!$B$4 -> 5528 | AA85: ='t CC I CV'!AA67*'График CC I CV'!$B$4 -> 5769 | AB85: ='t CC I CV'!AB67*'График CC I CV'!$B$4 -> 6009 | AC85: ='t CC I CV'!AC67*'График CC I CV'!$B$4 -> 6249 | AD85: ='t CC I CV'!AD67*'График CC I CV'!$B$4 -> 6490 | AE85: ='t CC I CV'!AE67*'График CC I CV'!$B$4 -> 6730 | AF85: ='t CC I CV'!AF67*'График CC I CV'!$B$4 -> 6971 | AG85: ='t CC I CV'!AG67*'График CC I CV'!$B$4 -> 7211
C87: 30 | D87: Classic CH / Classic CV(L)H | E87: боковое / нижнее | F87: CCH 30-5-XX / CV(L)H 30-5-XX | G87: ='t CC I CV'!G70*'График CC I CV'!$B$4 -> 938 | H87: ='t CC I CV'!H70*'График CC I CV'!$B$4 -> 1172 | I87: ='t CC I CV'!I70*'График CC I CV'!$B$4 -> 1407 | J87: ='t CC I CV'!J70*'График CC I CV'!$B$4 -> 1641 | K87: ='t CC I CV'!K70*'График CC I CV'!$B$4 -> 1876 | L87: ='t CC I CV'!L70*'График CC I CV'!$B$4 -> 2110 | M87: ='t CC I CV'!M70*'График CC I CV'!$B$4 -> 2345 | N87: ='t CC I CV'!N70*'График CC I CV'!$B$4 -> 2579 | O87: ='t CC I CV'!O70*'График CC I CV'!$B$4 -> 2814 | P87: ='t CC I CV'!P70*'График CC I CV'!$B$4 -> 3048 | Q87: ='t CC I CV'!Q70*'График CC I CV'!$B$4 -> 3283 | R87: ='t CC I CV'!R70*'График CC I CV'!$B$4 -> 3517 | S87: ='t CC I CV'!S70*'График CC I CV'!$B$4 -> 3752 | T87: ='t CC I CV'!T70*'График CC I CV'!$B$4 -> 3986 | U87: ='t CC I CV'!U70*'График CC I CV'!$B$4 -> 4220 | V87: ='t CC I CV'!V70*'График CC I CV'!$B$4 -> 4455 | W87: ='t CC I CV'!W70*'График CC I CV'!$B$4 -> 4689 | X87: ='t CC I CV'!X70*'График CC I CV'!$B$4 -> 4924 | Y87: ='t CC I CV'!Y70*'График CC I CV'!$B$4 -> 5158 | Z87: ='t CC I CV'!Z70*'График CC I CV'!$B$4 -> 5393 | AA87: ='t CC I CV'!AA70*'График CC I CV'!$B$4 -> 5627 | AB87: ='t CC I CV'!AB70*'График CC I CV'!$B$4 -> 5862 | AC87: ='t CC I CV'!AC70*'График CC I CV'!$B$4 -> 6096 | AD87: ='t CC I CV'!AD70*'График CC I CV'!$B$4 -> 6331 | AE87: ='t CC I CV'!AE70*'График CC I CV'!$B$4 -> 6565 | AF87: ='t CC I CV'!AF70*'График CC I CV'!$B$4 -> 6800 | AG87: ='t CC I CV'!AG70*'График CC I CV'!$B$4 -> 7034
C89: 33 | D89: Classic C / Classic CV(L) | E89: боковое / нижнее | F89: CC 33-5-XX / CV(L) 33-5-XX | G89: ='t CC I CV'!G73*'График CC I CV'!$B$4 -> 1327 | H89: ='t CC I CV'!H73*'График CC I CV'!$B$4 -> 1659 | I89: ='t CC I CV'!I73*'График CC I CV'!$B$4 -> 1991 | J89: ='t CC I CV'!J73*'График CC I CV'!$B$4 -> 2323 | K89: ='t CC I CV'!K73*'График CC I CV'!$B$4 -> 2655 | L89: ='t CC I CV'!L73*'График CC I CV'!$B$4 -> 2987 | M89: ='t CC I CV'!M73*'График CC I CV'!$B$4 -> 3318 | N89: ='t CC I CV'!N73*'График CC I CV'!$B$4 -> 3650 | O89: ='t CC I CV'!O73*'График CC I CV'!$B$4 -> 3982 | P89: ='t CC I CV'!P73*'График CC I CV'!$B$4 -> 4314 | Q89: ='t CC I CV'!Q73*'График CC I CV'!$B$4 -> 4646 | R89: ='t CC I CV'!R73*'График CC I CV'!$B$4 -> 4978 | S89: ='t CC I CV'!S73*'График CC I CV'!$B$4 -> 5310 | T89: ='t CC I CV'!T73*'График CC I CV'!$B$4 -> 5641 | U89: ='t CC I CV'!U73*'График CC I CV'!$B$4 -> 5973 | V89: ='t CC I CV'!V73*'График CC I CV'!$B$4 -> 6305 | W89: ='t CC I CV'!W73*'График CC I CV'!$B$4 -> 6637 | X89: ='t CC I CV'!X73*'График CC I CV'!$B$4 -> 6969 | Y89: ='t CC I CV'!Y73*'График CC I CV'!$B$4 -> 7301 | Z89: ='t CC I CV'!Z73*'График CC I CV'!$B$4 -> 7632 | AA89: ='t CC I CV'!AA73*'График CC I CV'!$B$4 -> 7964 | AB89: ='t CC I CV'!AB73*'График CC I CV'!$B$4 -> 8296 | AC89: ='t CC I CV'!AC73*'График CC I CV'!$B$4 -> 8628 | AD89: ='t CC I CV'!AD73*'График CC I CV'!$B$4 -> 8960 | AE89: ='t CC I CV'!AE73*'График CC I CV'!$B$4 -> 9292 | AF89: ='t CC I CV'!AF73*'График CC I CV'!$B$4 -> 9623 | AG89: ='t CC I CV'!AG73*'График CC I CV'!$B$4 -> 9955
A92: CC/CV | B92: Высота (см) | C92: Тип | D92: Модель | E92: Подключение | F92: Артикул заказа | T92: Длина, см
G93: 40 | H93: 50 | I93: 60 | J93: 70 | K93: 80 | L93: 90 | M93: 100 | N93: 110 | O93: 120 | P93: 130 | Q93: 140 | R93: 150 | S93: 160 | T93: 170 | U93: 180 | V93: 190 | W93: 200 | X93: 210 | Y93: 220 | Z93: 230 | AA93: 240 | AB93: 250 | AC93: 260 | AD93: 270 | AE93: 280 | AF93: 290 | AG93: 300
B94: 60 | C94: 10 | D94: Classic CH / Classic CV(L)H | E94: боковое / нижнее | F94: CCH 10-6-XX / CV(L)H 10-6-XX | G94: ='t CC I CV'!G99*'График CC I CV'!$B$4 -> 418 | H94: ='t CC I CV'!H99*'График CC I CV'!$B$4 -> 523 | I94: ='t CC I CV'!I99*'График CC I CV'!$B$4 -> 628 | J94: ='t CC I CV'!J99*'График CC I CV'!$B$4 -> 732 | K94: ='t CC I CV'!K99*'График CC I CV'!$B$4 -> 837 | L94: ='t CC I CV'!L99*'График CC I CV'!$B$4 -> 941 | M94: ='t CC I CV'!M99*'График CC I CV'!$B$4 -> 1046 | N94: ='t CC I CV'!N99*'График CC I CV'!$B$4 -> 1151 | O94: ='t CC I CV'!O99*'График CC I CV'!$B$4 -> 1255 | P94: ='t CC I CV'!P99*'График CC I CV'!$B$4 -> 1360 | Q94: ='t CC I CV'!Q99*'График CC I CV'!$B$4 -> 1464 | R94: ='t CC I CV'!R99*'График CC I CV'!$B$4 -> 1569 | S94: ='t CC I CV'!S99*'График CC I CV'!$B$4 -> 1674 | T94: ='t CC I CV'!T99*'График CC I CV'!$B$4 -> 1778 | U94: ='t CC I CV'!U99*'График CC I CV'!$B$4 -> 1883 | V94: ='t CC I CV'!V99*'График CC I CV'!$B$4 -> 1987 | W94: ='t CC I CV'!W99*'График CC I CV'!$B$4 -> 2092 | X94: ='t CC I CV'!X99*'График CC I CV'!$B$4 -> 2197 | Y94: ='t CC I CV'!Y99*'График CC I CV'!$B$4 -> 2301 | Z94: ='t CC I CV'!Z99*'График CC I CV'!$B$4 -> 2406 | AA94: ='t CC I CV'!AA99*'График CC I CV'!$B$4 -> 2510 | AB94: ='t CC I CV'!AB99*'График CC I CV'!$B$4 -> 2615 | AC94: ='t CC I CV'!AC99*'График CC I CV'!$B$4 -> 2720 | AD94: ='t CC I CV'!AD99*'График CC I CV'!$B$4 -> 2824 | AE94: ='t CC I CV'!AE99*'График CC I CV'!$B$4 -> 2929 | AF94: ='t CC I CV'!AF99*'График CC I CV'!$B$4 -> 3033 | AG94: ='t CC I CV'!AG99*'График CC I CV'!$B$4 -> 3138
C96: 11 | D96: Classic C / Classic CV(L) | E96: боковое / нижнее | F96: CC 11-6-XX / CV(L) 11-6-XX | G96: ='t CC I CV'!G102*'График CC I CV'!$B$4 -> 602 | H96: ='t CC I CV'!H102*'График CC I CV'!$B$4 -> 753 | I96: ='t CC I CV'!I102*'График CC I CV'!$B$4 -> 904 | J96: ='t CC I CV'!J102*'График CC I CV'!$B$4 -> 1054 | K96: ='t CC I CV'!K102*'График CC I CV'!$B$4 -> 1205 | L96: ='t CC I CV'!L102*'График CC I CV'!$B$4 -> 1355 | M96: ='t CC I CV'!M102*'График CC I CV'!$B$4 -> 1506 | N96: ='t CC I CV'!N102*'График CC I CV'!$B$4 -> 1657 | O96: ='t CC I CV'!O102*'График CC I CV'!$B$4 -> 1807 | P96: ='t CC I CV'!P102*'График CC I CV'!$B$4 -> 1958 | Q96: ='t CC I CV'!Q102*'График CC I CV'!$B$4 -> 2108 | R96: ='t CC I CV'!R102*'График CC I CV'!$B$4 -> 2259 | S96: ='t CC I CV'!S102*'График CC I CV'!$B$4 -> 2410 | T96: ='t CC I CV'!T102*'График CC I CV'!$B$4 -> 2560 | U96: ='t CC I CV'!U102*'График CC I CV'!$B$4 -> 2711 | V96: ='t CC I CV'!V102*'График CC I CV'!$B$4 -> 2861 | W96: ='t CC I CV'!W102*'График CC I CV'!$B$4 -> 3012 | X96: ='t CC I CV'!X102*'График CC I CV'!$B$4 -> 3163 | Y96: ='t CC I CV'!Y102*'График CC I CV'!$B$4 -> 3313 | Z96: ='t CC I CV'!Z102*'График CC I CV'!$B$4 -> 3464 | AA96: ='t CC I CV'!AA102*'График CC I CV'!$B$4 -> 3614 | AB96: ='t CC I CV'!AB102*'График CC I CV'!$B$4 -> 3765 | AC96: ='t CC I CV'!AC102*'График CC I CV'!$B$4 -> 3916 | AD96: ='t CC I CV'!AD102*'График CC I CV'!$B$4 -> 4066 | AE96: ='t CC I CV'!AE102*'График CC I CV'!$B$4 -> 4217 | AF96: ='t CC I CV'!AF102*'График CC I CV'!$B$4 -> 4367 | AG96: ='t CC I CV'!AG102*'График CC I CV'!$B$4 -> 4518
C98: 20 | D98: Classic CH / Classic CV(L)H | E98: боковое / нижнее | F98: CCH 20-6-XX / CV(L)H 20-6-XX | G98: ='t CC I CV'!G105*'График CC I CV'!$B$4 -> 681 | H98: ='t CC I CV'!H105*'График CC I CV'!$B$4 -> 851 | I98: ='t CC I CV'!I105*'График CC I CV'!$B$4 -> 1021 | J98: ='t CC I CV'!J105*'График CC I CV'!$B$4 -> 1191 | K98: ='t CC I CV'!K105*'График CC I CV'!$B$4 -> 1362 | L98: ='t CC I CV'!L105*'График CC I CV'!$B$4 -> 1532 | M98: ='t CC I CV'!M105*'График CC I CV'!$B$4 -> 1702 | N98: ='t CC I CV'!N105*'График CC I CV'!$B$4 -> 1872 | O98: ='t CC I CV'!O105*'График CC I CV'!$B$4 -> 2042 | P98: ='t CC I CV'!P105*'График CC I CV'!$B$4 -> 2213 | Q98: ='t CC I CV'!Q105*'График CC I CV'!$B$4 -> 2383 | R98: ='t CC I CV'!R105*'График CC I CV'!$B$4 -> 2553 | S98: ='t CC I CV'!S105*'График CC I CV'!$B$4 -> 2723 | T98: ='t CC I CV'!T105*'График CC I CV'!$B$4 -> 2893 | U98: ='t CC I CV'!U105*'График CC I CV'!$B$4 -> 3064 | V98: ='t CC I CV'!V105*'График CC I CV'!$B$4 -> 3234 | W98: ='t CC I CV'!W105*'График CC I CV'!$B$4 -> 3404 | X98: ='t CC I CV'!X105*'График CC I CV'!$B$4 -> 3574 | Y98: ='t CC I CV'!Y105*'График CC I CV'!$B$4 -> 3744 | Z98: ='t CC I CV'!Z105*'График CC I CV'!$B$4 -> 3915 | AA98: ='t CC I CV'!AA105*'График CC I CV'!$B$4 -> 4085 | AB98: ='t CC I CV'!AB105*'График CC I CV'!$B$4 -> 4255 | AC98: ='t CC I CV'!AC105*'График CC I CV'!$B$4 -> 4425 | AD98: ='t CC I CV'!AD105*'График CC I CV'!$B$4 -> 4595 | AE98: ='t CC I CV'!AE105*'График CC I CV'!$B$4 -> 4766 | AF98: ='t CC I CV'!AF105*'График CC I CV'!$B$4 -> 4936 | AG98: ='t CC I CV'!AG105*'График CC I CV'!$B$4 -> 5106
C100: 21 | D100: Classic C / Classic CV(L) | E100: боковое / нижнее | F100: CC 21-6-XX / CV(L) 21-6-XX | G100: ='t CC I CV'!G108*'График CC I CV'!$B$4 -> 884 | H100: ='t CC I CV'!H108*'График CC I CV'!$B$4 -> 1106 | I100: ='t CC I CV'!I108*'График CC I CV'!$B$4 -> 1327 | J100: ='t CC I CV'!J108*'График CC I CV'!$B$4 -> 1548 | K100: ='t CC I CV'!K108*'График CC I CV'!$B$4 -> 1769 | L100: ='t CC I CV'!L108*'График CC I CV'!$B$4 -> 1990 | M100: ='t CC I CV'!M108*'График CC I CV'!$B$4 -> 2211 | N100: ='t CC I CV'!N108*'График CC I CV'!$B$4 -> 2432 | O100: ='t CC I CV'!O108*'График CC I CV'!$B$4 -> 2653 | P100: ='t CC I CV'!P108*'График CC I CV'!$B$4 -> 2874 | Q100: ='t CC I CV'!Q108*'График CC I CV'!$B$4 -> 3095 | R100: ='t CC I CV'!R108*'График CC I CV'!$B$4 -> 3317 | S100: ='t CC I CV'!S108*'График CC I CV'!$B$4 -> 3538 | T100: ='t CC I CV'!T108*'График CC I CV'!$B$4 -> 3759 | U100: ='t CC I CV'!U108*'График CC I CV'!$B$4 -> 3980 | V100: ='t CC I CV'!V108*'График CC I CV'!$B$4 -> 4201 | W100: ='t CC I CV'!W108*'График CC I CV'!$B$4 -> 4422 | X100: ='t CC I CV'!X108*'График CC I CV'!$B$4 -> 4643 | Y100: ='t CC I CV'!Y108*'График CC I CV'!$B$4 -> 4864 | Z100: ='t CC I CV'!Z108*'График CC I CV'!$B$4 -> 5085 | AA100: ='t CC I CV'!AA108*'График CC I CV'!$B$4 -> 5306 | AB100: ='t CC I CV'!AB108*'График CC I CV'!$B$4 -> 5528 | AC100: ='t CC I CV'!AC108*'График CC I CV'!$B$4 -> 5749 | AD100: ='t CC I CV'!AD108*'График CC I CV'!$B$4 -> 5970 | AE100: ='t CC I CV'!AE108*'График CC I CV'!$B$4 -> 6191 | AF100: ='t CC I CV'!AF108*'График CC I CV'!$B$4 -> 6412 | AG100: ='t CC I CV'!AG108*'График CC I CV'!$B$4 -> 6633
C102: 22 | D102: Classic C / Classic CV(L) | E102: боковое / нижнее | F102: CC 22-6-XX / CV(L) 22-6-XX | G102: ='t CC I CV'!G111*'График CC I CV'!$B$4 -> 1154 | H102: ='t CC I CV'!H111*'График CC I CV'!$B$4 -> 1443 | I102: ='t CC I CV'!I111*'График CC I CV'!$B$4 -> 1731 | J102: ='t CC I CV'!J111*'График CC I CV'!$B$4 -> 2020 | K102: ='t CC I CV'!K111*'График CC I CV'!$B$4 -> 2308 | L102: ='t CC I CV'!L111*'График CC I CV'!$B$4 -> 2597 | M102: ='t CC I CV'!M111*'График CC I CV'!$B$4 -> 2885 | N102: ='t CC I CV'!N111*'График CC I CV'!$B$4 -> 3174 | O102: ='t CC I CV'!O111*'График CC I CV'!$B$4 -> 3462 | P102: ='t CC I CV'!P111*'График CC I CV'!$B$4 -> 3751 | Q102: ='t CC I CV'!Q111*'График CC I CV'!$B$4 -> 4039 | R102: ='t CC I CV'!R111*'График CC I CV'!$B$4 -> 4328 | S102: ='t CC I CV'!S111*'График CC I CV'!$B$4 -> 4616 | T102: ='t CC I CV'!T111*'График CC I CV'!$B$4 -> 4905 | U102: ='t CC I CV'!U111*'График CC I CV'!$B$4 -> 5193 | V102: ='t CC I CV'!V111*'График CC I CV'!$B$4 -> 5482 | W102: ='t CC I CV'!W111*'График CC I CV'!$B$4 -> 5770 | X102: ='t CC I CV'!X111*'График CC I CV'!$B$4 -> 6059 | Y102: ='t CC I CV'!Y111*'График CC I CV'!$B$4 -> 6347 | Z102: ='t CC I CV'!Z111*'График CC I CV'!$B$4 -> 6636 | AA102: ='t CC I CV'!AA111*'График CC I CV'!$B$4 -> 6924 | AB102: ='t CC I CV'!AB111*'График CC I CV'!$B$4 -> 7213 | AC102: ='t CC I CV'!AC111*'График CC I CV'!$B$4 -> 7501 | AD102: ='t CC I CV'!AD111*'График CC I CV'!$B$4 -> 7790 | AE102: ='t CC I CV'!AE111*'График CC I CV'!$B$4 -> 8078 | AF102: ='t CC I CV'!AF111*'График CC I CV'!$B$4 -> 8367 | AG102: ='t CC I CV'!AG111*'График CC I CV'!$B$4 -> 8655
C104: 30 | D104: Classic CH / Classic CV(L)H | E104: боковое / нижнее | F104: CCH 30-6-XX / CV(L)H 30-6-XX | G104: ='t CC I CV'!G114*'График CC I CV'!$B$4 -> 1094 | H104: ='t CC I CV'!H114*'График CC I CV'!$B$4 -> 1368 | I104: ='t CC I CV'!I114*'График CC I CV'!$B$4 -> 1642 | J104: ='t CC I CV'!J114*'График CC I CV'!$B$4 -> 1915 | K104: ='t CC I CV'!K114*'График CC I CV'!$B$4 -> 2189 | L104: ='t CC I CV'!L114*'График CC I CV'!$B$4 -> 2462 | M104: ='t CC I CV'!M114*'График CC I CV'!$B$4 -> 2736 | N104: ='t CC I CV'!N114*'График CC I CV'!$B$4 -> 3010 | O104: ='t CC I CV'!O114*'График CC I CV'!$B$4 -> 3283 | P104: ='t CC I CV'!P114*'График CC I CV'!$B$4 -> 3557 | Q104: ='t CC I CV'!Q114*'График CC I CV'!$B$4 -> 3830 | R104: ='t CC I CV'!R114*'График CC I CV'!$B$4 -> 4104 | S104: ='t CC I CV'!S114*'График CC I CV'!$B$4 -> 4378 | T104: ='t CC I CV'!T114*'График CC I CV'!$B$4 -> 4651 | U104: ='t CC I CV'!U114*'График CC I CV'!$B$4 -> 4925 | V104: ='t CC I CV'!V114*'График CC I CV'!$B$4 -> 5198 | W104: ='t CC I CV'!W114*'График CC I CV'!$B$4 -> 5472 | X104: ='t CC I CV'!X114*'График CC I CV'!$B$4 -> 5746 | Y104: ='t CC I CV'!Y114*'График CC I CV'!$B$4 -> 6019 | Z104: ='t CC I CV'!Z114*'График CC I CV'!$B$4 -> 6293 | AA104: ='t CC I CV'!AA114*'График CC I CV'!$B$4 -> 6566 | AB104: ='t CC I CV'!AB114*'График CC I CV'!$B$4 -> 6840 | AC104: ='t CC I CV'!AC114*'График CC I CV'!$B$4 -> 7114 | AD104: ='t CC I CV'!AD114*'График CC I CV'!$B$4 -> 7387 | AE104: ='t CC I CV'!AE114*'График CC I CV'!$B$4 -> 7661 | AF104: ='t CC I CV'!AF114*'График CC I CV'!$B$4 -> 7934 | AG104: ='t CC I CV'!AG114*'График CC I CV'!$B$4 -> 8208
C106: 33 | D106: Classic C / Classic CV(L) | E106: боковое / нижнее | F106: CC 33-6-XX / CV(L) 33-6-XX | G106: ='t CC I CV'!G117*'График CC I CV'!$B$4 -> 1599 | H106: ='t CC I CV'!H117*'График CC I CV'!$B$4 -> 1999 | I106: ='t CC I CV'!I117*'График CC I CV'!$B$4 -> 2398 | J106: ='t CC I CV'!J117*'График CC I CV'!$B$4 -> 2798 | K106: ='t CC I CV'!K117*'График CC I CV'!$B$4 -> 3198 | L106: ='t CC I CV'!L117*'График CC I CV'!$B$4 -> 3597 | M106: ='t CC I CV'!M117*'График CC I CV'!$B$4 -> 3997 | N106: ='t CC I CV'!N117*'График CC I CV'!$B$4 -> 4397 | O106: ='t CC I CV'!O117*'График CC I CV'!$B$4 -> 4796 | P106: ='t CC I CV'!P117*'График CC I CV'!$B$4 -> 5196 | Q106: ='t CC I CV'!Q117*'График CC I CV'!$B$4 -> 5596 | R106: ='t CC I CV'!R117*'График CC I CV'!$B$4 -> 5996 | S106: ='t CC I CV'!S117*'График CC I CV'!$B$4 -> 6395 | T106: ='t CC I CV'!T117*'График CC I CV'!$B$4 -> 6795 | U106: ='t CC I CV'!U117*'График CC I CV'!$B$4 -> 7195 | V106: ='t CC I CV'!V117*'График CC I CV'!$B$4 -> 7594 | W106: ='t CC I CV'!W117*'График CC I CV'!$B$4 -> 7994 | X106: ='t CC I CV'!X117*'График CC I CV'!$B$4 -> 8394 | Y106: ='t CC I CV'!Y117*'График CC I CV'!$B$4 -> 8793 | Z106: ='t CC I CV'!Z117*'График CC I CV'!$B$4 -> 9193 | AA106: ='t CC I CV'!AA117*'График CC I CV'!$B$4 -> 9593 | AB106: ='t CC I CV'!AB117*'График CC I CV'!$B$4 -> 9993 | AC106: ='t CC I CV'!AC117*'График CC I CV'!$B$4 -> 10392 | AD106: ='t CC I CV'!AD117*'График CC I CV'!$B$4 -> 10792 | AE106: ='t CC I CV'!AE117*'График CC I CV'!$B$4 -> 11192 | AF106: ='t CC I CV'!AF117*'График CC I CV'!$B$4 -> 11591 | AG106: ='t CC I CV'!AG117*'График CC I CV'!$B$4 -> 11991

Sheet График CC I CV (hidden)
B3: kt | D3: n
B4: =('CC I CV'!E4/70)^1.3 -> 1 | D4: 1.3

Sheet t CC I CV (hidden)
A3: CC/CV | B3: Высота (см) | C3: Тип | D3: Модель | E3: Подключение | F3: Артикул заказа | G3: Длина, см
G4: 40 | H4: 50 | I4: 60 | J4: 70 | K4: 80 | L4: 90 | M4: 100 | N4: 110 | O4: 120 | P4: 130 | Q4: 140 | R4: 150 | S4: 160 | T4: 170 | U4: 180 | V4: 190 | W4: 200 | X4: 210 | Y4: 220 | Z4: 230 | AA4: 240 | AB4: 250 | AC4: 260 | AD4: 270 | AE4: 280 | AF4: 290 | AG4: 300
B5: 30 | C5: 10 | D5: Classic C | E5: боковое | F5: CC 10-3-XX | G5: 226 | H5: 282 | I5: 339 | J5: 395 | K5: 452 | L5: 508 | M5: 565 | N5: 621 | O5: 678 | P5: 734 | Q5: 791 | R5: 847 | S5: 904 | T5: 960 | U5: 1017 | V5: 1073 | W5: 1130 | X5: 1186 | Y5: 1243 | Z5: 1299 | AA5: 1356 | AB5: 1412 | AC5: 1469 | AD5: 1525 | AE5: 1582 | AF5: 1638 | AG5: 1695
D6: Classic CV(L) | E6: нижнее | F6: CV(L) 10-3-XX
C8: 11 | D8: Classic C | E8: боковое | F8: CC 10-3-XX | G8: 319 | H8: 399 | I8: 478 | J8: 558 | K8: 638 | L8: 717 | M8: 797 | N8: 877 | O8: 957 | P8: 1036 | Q8: 1116 | R8: 1196 | S8: 1275 | T8: 1355 | U8: 1435 | V8: 1515 | W8: 1594 | X8: 1674 | Y8: 1754 | Z8: 1833 | AA8: 1913 | AB8: 1993 | AC8: 2073 | AD8: 2152 | AE8: 2232 | AF8: 2312 | AG8: 2391
D9: Classic CV(L) | E9: нижнее | F9: CV(L) 10-3-XX
C11: 20 | D11: Classic C | E11: боковое | F11: CC 10-3-XX | G11: 387 | H11: 483 | I11: 580 | J11: 677 | K11: 773 | L11: 870 | M11: 967 | N11: 1063 | O11: 1160 | P11: 1257 | Q11: 1353 | R11: 1450 | S11: 1547 | T11: 1643 | U11: 1740 | V11: 1837 | W11: 1933 | X11: 2030 | Y11: 2127 | Z11: 2223 | AA11: 2320 | AB11: 2416 | AC11: 2513 | AD11: 2610 | AE11: 2706 | AF11: 2803 | AG11: 2900
D12: Classic CV(L) | E12: нижнее | F12: CV(L) 10-3-XX
C14: 21 | D14: Classic C | E14: боковое | F14: CC 10-3-XX | G14: 482 | H14: 602 | I14: 723 | J14: 843 | K14: 964 | L14: 1084 | M14: 1204 | N14: 1325 | O14: 1445 | P14: 1566 | Q14: 1686 | R14: 1807 | S14: 1927 | T14: 2047 | U14: 2168 | V14: 2288 | W14: 2409 | X14: 2529 | Y14: 2650 | Z14: 2770 | AA14: 2891 | AB14: 3011 | AC14: 3131 | AD14: 3252 | AE14: 3372 | AF14: 3493 | AG14: 3613
D15: Classic CV(L) | E15: нижнее | F15: CV(L) 10-3-XX
C17: 22 | D17: Classic C | E17: боковое | F17: CC 10-3-XX | G17: 609 | H17: 761 | I17: 913 | J17: 1065 | K17: 1217 | L17: 1369 | M17: 1521 | N17: 1674 | O17: 1826 | P17: 1978 | Q17: 2130 | R17: 2282 | S17: 2434 | T17: 2586 | U17: 2739 | V17: 2891 | W17: 3043 | X17: 3195 | Y17: 3347 | Z17: 3499 | AA17: 3651 | AB17: 3803 | AC17: 3956 | AD17: 4108 | AE17: 4260 | AF17: 4412 | AG17: 4564
D18: Classic CV(L) | E18: нижнее | F18: CV(L) 10-3-XX
C20: 30 | D20: Classic C | E20: боковое | F20: CC 10-3-XX | G20: 594 | H20: 742 | I20: 891 | J20: 1039 | K20: 1188 | L20: 1336 | M20: 1485 | N20: 1633 | O20: 1781 | P20: 1930 | Q20: 2078 | R20: 2227 | S20: 2375 | T20: 2524 | U20: 2672 | V20: 2821 | W20: 2969 | X20: 3118 | Y20: 3266 | Z20: 3414 | AA20: 3563 | AB20: 3711 | AC20: 3860 | AD20: 4008 | AE20: 4157 | AF20: 4305 | AG20: 4454
D21: Classic CV(L) | E21: нижнее | F21: CV(L) 10-3-XX
C23: 33 | D23: Classic C | E23: боковое | F23: CC 10-3-XX | G23: 903 | H23: 1129 | I23: 1355 | J23: 1580 | K23: 1806 | L23: 2032 | M23: 2258 | N23: 2483 | O23: 2709 | P23: 2935 | Q23: 3161 | R23: 3386 | S23: 3612 | T23: 3838 | U23: 4064 | V23: 4289 | W23: 4515 | X23: 4741 | Y23: 4967 | Z23: 5192 | AA23: 5418 | AB23: 5644 | AC23: 5870 | AD23: 6095 | AE23: 6321 | AF23: 6547 | AG23: 6773
D24: Classic CV(L) | E24: нижнее | F24: CV(L) 10-3-XX
A28: CC/CV | B28: Высота (см) | C28: Тип | D28: Модель | E28: Подключение | F28: Артикул заказа | G28: Длина, см
G29: 40 | H29: 50 | I29: 60 | J29: 70 | K29: 80 | L29: 90 | M29: 100 | N29: 110 | O29: 120 | P29: 130 | Q29: 140 | R29: 150 | S29: 160 | T29: 170 | U29: 180 | V29: 190 | W29: 200 | X29: 210 | Y29: 220 | Z29: 230 | AA29: 240 | AB29: 250 | AC29: 260 | AD29: 270 | AE29: 280 | AF29: 290 | AG29: 300
B30: 40 | C30: 10 | D30: Classic C | E30: боковое | F30: CC 10-3-XX | G30: 272 | H30: 339 | I30: 407 | J30: 475 | K30: 543 | L30: 611 | M30: 679 | N30: 747 | O30: 815 | P30: 883 | Q30: 950 | R30: 1018 | S30: 1086 | T30: 1154 | U30: 1222 | V30: 1290 | W30: 1358 | X30: 1426 | Y30: 1493 | Z30: 1561 | AA30: 1629 | AB30: 1697 | AC30: 1765 | AD30: 1833 | AE30: 1901 | AF30: 1969 | AG30: 2037
D31: Classic CV(L) | E31: нижнее | F31: CV(L) 10-3-XX
C33: 11 | D33: Classic C | E33: боковое | F33: CC 10-3-XX | G33: 395 | H33: 494 | I33: 592 | J33: 691 | K33: 790 | L33: 889 | M33: 987 | N33: 1086 | O33: 1185 | P33: 1284 | Q33: 1382 | R33: 1481 | S33: 1580 | T33: 1679 | U33: 1777 | V33: 1876 | W33: 1975 | X33: 2074 | Y33: 2172 | Z33: 2271 | AA33: 2370 | AB33: 2469 | AC33: 2567 | AD33: 2666 | AE33: 2765 | AF33: 2864 | AG33: 2962
D34: Classic CV(L) | E34: нижнее | F34: CV(L) 10-3-XX
C36: 20 | D36: Classic C | E36: боковое | F36: CC 10-3-XX | G36: 473 | H36: 591 | I36: 709 | J36: 827 | K36: 946 | L36: 1064 | M36: 1182 | N36: 1300 | O36: 1418 | P36: 1537 | Q36: 1655 | R36: 1773 | S36: 1891 | T36: 2009 | U36: 2128 | V36: 2246 | W36: 2364 | X36: 2482 | Y36: 2600 | Z36: 2718 | AA36: 2837 | AB36: 2955 | AC36: 3073 | AD36: 3191 | AE36: 3309 | AF36: 3428 | AG36: 3546
D37: Classic CV(L) | E37: нижнее | F37: CV(L) 10-3-XX
C39: 21 | D39: Classic C | E39: боковое | F39: CC 10-3-XX | G39: 592 | H39: 740 | I39: 888 | J39: 1037 | K39: 1185 | L39: 1333 | M39: 1481 | N39: 1629 | O39: 1777 | P39: 1925 | Q39: 2073 | R39: 2221 | S39: 2369 | T39: 2517 | U39: 2665 | V39: 2814 | W39: 2962 | X39: 3110 | Y39: 3258 | Z39: 3406 | AA39: 3554 | AB39: 3702 | AC39: 3850 | AD39: 3998 | AE39: 4146 | AF39: 4294 | AG39: 4442
D40: Classic CV(L) | E40: нижнее | F40: CV(L) 10-3-XX
C42: 22 | D42: Classic C | E42: боковое | F42: CC 10-3-XX | G42: 755 | H42: 944 | I42: 1133 | J42: 1322 | K42: 1511 | L42: 1700 | M42: 1889 | N42: 2078 | O42: 2266 | P42: 2455 | Q42: 2644 | R42: 2833 | S42: 3022 | T42: 3211 | U42: 3400 | V42: 3588 | W42: 3777 | X42: 3966 | Y42: 4155 | Z42: 4344 | AA42: 4533 | AB42: 4722 | AC42: 4911 | AD42: 5099 | AE42: 5288 | AF42: 5477 | AG42: 5666
D43: Classic CV(L) | E43: нижнее | F43: CV(L) 10-3-XX
C45: 30 | D45: Classic C | E45: боковое | F45: CC 10-3-XX | G45: 732 | H45: 914 | I45: 1097 | J45: 1280 | K45: 1463 | L45: 1645 | M45: 1829 | N45: 2012 | O45: 2196 | P45: 2378 | Q45: 2560 | R45: 2743 | S45: 2926 | T45: 3109 | U45: 3292 | V45: 3474 | W45: 3658 | X45: 3841 | Y45: 4023 | Z45: 4207 | AA45: 4388 | AB45: 4570 | AC45: 4755 | AD45: 4937 | AE45: 5120 | AF45: 5302 | AG45: 5486
D46: Classic CV(L) | E46: нижнее | F46: CV(L) 10-3-XX
C48: 33 | D48: Classic C | E48: боковое | F48: CC 10-3-XX | G48: 1082 | H48: 1352 | I48: 1622 | J48: 1893 | K48: 2163 | L48: 2434 | M48: 2704 | N48: 2975 | O48: 3245 | P48: 3515 | Q48: 3786 | R48: 4056 | S48: 4372 | T48: 4597 | U48: 4867 | V48: 5138 | W48: 5408 | X48: 5679 | Y48: 5949 | Z48: 6219 | AA48: 6490 | AB48: 6760 | AC48: 7031 | AD48: 7301 | AE48: 7572 | AF48: 7842 | AG48: 8112
D49: Classic CV(L) | E49: нижнее | F49: CV(L) 10-3-XX
A53: CC/CV | B53: Высота (см) | C53: Тип | D53: Модель | E53: Подключение | F53: Артикул заказа | G53: Длина, см
G54: 40 | H54: 50 | I54: 60 | J54: 70 | K54: 80 | L54: 90 | M54: 100 | N54: 110 | O54: 120 | P54: 130 | Q54: 140 | R54: 150 | S54: 160 | T54: 170 | U54: 180 | V54: 190 | W54: 200 | X54: 210 | Y54: 220 | Z54: 230 | AA54: 240 | AB54: 250 | AC54: 260 | AD54: 270 | AE54: 280 | AF54: 290 | AG54: 300
B55: 50 | C55: 10 | D55: Classic C | E55: боковое | F55: CC 10-3-XX | G55: 350 | H55: 437 | I55: 524 | J55: 612 | K55: 699 | L55: 786 | M55: 874 | N55: 961 | O55: 1049 | P55: 1136 | Q55: 1223 | R55: 1311 | S55: 1398 | T55: 1485 | U55: 1573 | V55: 1660 | W55: 1748 | X55: 1835 | Y55: 1922 | Z55: 2010 | AA55: 2097 | AB55: 2185 | AC55: 2272 | AD55: 2359 | AE55: 2447 | AF55: 2534 | AG55: 2621
D56: Classic CV(L) | E56: нижнее | F56: CV(L) 10-3-XX
C58: 11 | D58: Classic C | E58: боковое | F58: CC 10-3-XX | G58: 517 | H58: 646 | I58: 776 | J58: 905 | K58: 1034 | L58: 1164 | M58: 1293 | N58: 1422 | O58: 1551 | P58: 1681 | Q58: 1810 | R58: 1939 | S58: 2068 | T58: 2198 | U58: 2327 | V58: 2456 | W58: 2586 | X58: 2715 | Y58: 2844 | Z58: 2973 | AA58: 3102 | AB58: 3232 | AC58: 3361 | AD58: 3491 | AE58: 3620 | AF58: 3749 | AG58: 3878
D59: Classic CV(L) | E59: нижнее | F59: CV(L) 10-3-XX
C61: 20 | D61: Classic C | E61: боковое | F61: CC 10-3-XX | G61: 578 | H61: 723 | I61: 867 | J61: 1012 | K61: 1156 | L61: 1301 | M61: 1445 | N61: 1590 | O61: 1734 | P61: 1879 | Q61: 2023 | R61: 2168 | S61: 2312 | T61: 2457 | U61: 2602 | V61: 2746 | W61: 2891 | X61: 3035 | Y61: 3180 | Z61: 3324 | AA61: 3469 | AB61: 3613 | AC61: 3758 | AD61: 3902 | AE61: 4047 | AF61: 4191 | AG61: 4336
D62: Classic CV(L) | E62: нижнее | F62: CV(L) 10-3-XX
C64: 21 | D64: Classic C | E64: боковое | F64: CC 10-3-XX | G64: 738 | H64: 923 | I64: 1107 | J64: 1292 | K64: 1476 | L64: 1661 | M64: 1845 | N64: 2030 | O64: 2214 | P64: 2399 | Q64: 2583 | R64: 2768 | S64: 2952 | T64: 3137 | U64: 3321 | V64: 3506 | W64: 3690 | X64: 3875 | Y64: 4059 | Z64: 4244 | AA64: 4428 | AB64: 4613 | AC64: 4797 | AD64: 4982 | AE64: 5166 | AF64: 5351 | AG64: 5535
D65: Classic CV(L) | E65: нижнее | F65: CV(L) 10-3-XX
C67: 22 | D67: Classic C | E67: боковое | F67: CC 10-3-XX | G67: 961 | H67: 1202 | I67: 1442 | J67: 1683 | K67: 1923 | L67: 2163 | M67: 2404 | N67: 2644 | O67: 2884 | P67: 3125 | Q67: 3365 | R67: 3605 | S67: 3846 | T67: 4086 | U67: 4327 | V67: 4567 | W67: 4807 | X67: 5048 | Y67: 5288 | Z67: 5528 | AA67: 5769 | AB67: 6009 | AC67: 6249 | AD67: 6490 | AE67: 6730 | AF67: 6971 | AG67: 7211
D68: Classic CV(L) | E68: нижнее | F68: CV(L) 10-3-XX
C70: 30 | D70: Classic C | E70: боковое | F70: CC 10-3-XX | G70: 938 | H70: 1172 | I70: 1407 | J70: 1641 | K70: 1876 | L70: 2110 | M70: 2345 | N70: 2579 | O70: 2814 | P70: 3048 | Q70: 3283 | R70: 3517 | S70: 3752 | T70: 3986 | U70: 4220 | V70: 4455 | W70: 4689 | X70: 4924 | Y70: 5158 | Z70: 5393 | AA70: 5627 | AB70: 5862 | AC70: 6096 | AD70: 6331 | AE70: 6565 | AF70: 6800 | AG70: 7034
D71: Classic CV(L) | E71: нижнее | F71: CV(L) 10-3-XX
C73: 33 | D73: Classic C | E73: боковое | F73: CC 10-3-XX | G73: 1327 | H73: 1659 | I73: 1991 | J73: 2323 | K73: 2655 | L73: 2987 | M73: 3318 | N73: 3650 | O73: 3982 | P73: 4314 | Q73: 4646 | R73: 4978 | S73: 5310 | T73: 5641 | U73: 5973 | V73: 6305 | W73: 6637 | X73: 6969 | Y73: 7301 | Z73: 7632 | AA73: 7964 | AB73: 8296 | AC73: 8628 | AD73: 8960 | AE73: 9292 | AF73: 9623 | AG73: 9955
D74: Classic CV(L) | E74: нижнее | F74: CV(L) 10-3-XX
A78: CC/CV | B78: Высота (см) | C78: Тип | D78: Модель | E78: Подключение | F78: Артикул заказа | G78: Длина, см
G79: 40 | H79: 50 | I79: 60 | J79: 70 | K79: 80 | L79: 90 | M79: 100 | N79: 110 | O79: 120 | P79: 130 | Q79: 140 | R79: 150 | S79: 160 | T79: 170 | U79: 180 | V79: 190 | W79: 200 | X79: 210 | Y79: 220 | Z79: 230 | AA79: 240 | AB79: 250 | AC79: 260 | AD79: 270 | AE79: 280 | AF79: 290 | AG79: 300
B80: 20 | C80: 20 | D80: Classic C | E80: боковое | F80: CC 10-3-XX | G80: 269 | H80: 336 | I80: 404 | J80: 471 | K80: 538 | L80: 605 | M80: 673 | N80: 740 | O80: 807 | P80: 874 | Q80: 942 | R80: 1009 | S80: 1076 | T80: 1143 | U80: 1211 | V80: 1278 | W80: 1345 | X80: 1412 | Y80: 1480 | Z80: 1547 | AA80: 1614 | AB80: 1681 | AC80: 1749 | AD80: 1816 | AE80: 1883 | AF80: 1950 | AG80: 2018
D81: Classic CV(L) | E81: нижнее | F81: CV(L) 10-3-XX
C83: 21 | D83: Classic C | E83: боковое | F83: CC 10-3-XX | G83: 319 | H83: 399 | I83: 479 | J83: 559 | K83: 639 | L83: 719 | M83: 798 | N83: 878 | O83: 958 | P83: 1038 | Q83: 1118 | R83: 1198 | S83: 1277 | T83: 1357 | U83: 1437 | V83: 1517 | W83: 1597 | X83: 1677 | Y83: 1757 | Z83: 1836 | AA83: 1916 | AB83: 1996 | AC83: 2076 | AD83: 2156 | AE83: 2236 | AF83: 2315 | AG83: 2395
D84: Classic CV(L) | E84: нижнее | F84: CV(L) 10-3-XX
C86: 22 | D86: Classic C | E86: боковое | F86: CC 10-3-XX | G86: 437 | H86: 531 | I86: 624 | J86: 719 | K86: 813 | L86: 908 | M86: 1002 | N86: 1098 | O86: 1192 | P86: 1286 | Q86: 1386 | R86: 1476 | S86: 1571 | T86: 1665 | U86: 1760 | V86: 1857 | W86: 1954 | X86: 2053 | Y86: 2150 | Z86: 2248 | AA86: 2346 | AB86: 2441 | AC86: 2539 | AD86: 2639 | AE86: 2736 | AF86: 2835 | AG86: 2929
D87: Classic CV(L) | E87: нижнее | F87: CV(L) 10-3-XX
C89: 30 | D89: Classic C | E89: боковое | F89: CC 10-3-XX | G89: 426 | H89: 532 | I89: 639 | J89: 745 | K89: 852 | L89: 958 | M89: 1064 | N89: 1171 | O89: 1277 | P89: 1383 | Q89: 1490 | R89: 1596 | S89: 1703 | T89: 1809 | U89: 1916 | V89: 2022 | W89: 2129 | X89: 2235 | Y89: 2342 | Z89: 2448 | AA89: 2555 | AB89: 2661 | AC89: 2767 | AD89: 2874 | AE89: 2980 | AF89: 3087 | AG89: 3193
D90: Classic CV(L) | E90: нижнее | F90: CV(L) 10-3-XX
C92: 33 | D92: Classic C | E92: боковое | F92: CC 10-3-XX | G92: 581 | H92: 726 | I92: 871 | J92: 1017 | K92: 1162 | L92: 1307 | M92: 1453 | N92: 1598 | O92: 1743 | P92: 1889 | Q92: 2034 | R92: 2179 | S92: 2324 | T92: 2470 | U92: 2615 | V92: 2760 | W92: 2905 | X92: 3050 | Y92: 3195 | Z92: 3341 | AA92: 3486 | AB92: 3631 | AC92: 3777 | AD92: 3922 | AE92: 4067 | AF92: 4242 | AG92: 4358
D93: Classic CV(L) | E93: нижнее | F93: CV(L) 10-3-XX
A97: CC/CV | B97: Высота (см) | C97: Тип | D97: Модель | E97: Подключение | F97: Артикул заказа | G97: Длина, см
G98: 40 | H98: 50 | I98: 60 | J98: 70 | K98: 80 | L98: 90 | M98: 100 | N98: 110 | O98: 120 | P98: 130 | Q98: 140 | R98: 150 | S98: 160 | T98: 170 | U98: 180 | V98: 190 | W98: 200 | X98: 210 | Y98: 220 | Z98: 230 | AA98: 240 | AB98: 250 | AC98: 260 | AD98: 270 | AE98: 280 | AF98: 290 | AG98: 300
B99: 60 | C99: 10 | D99: Classic C | E99: боковое | F99: CC 10-3-XX | G99: 418 | H99: 523 | I99: 628 | J99: 732 | K99: 837 | L99: 941 | M99: 1046 | N99: 1151 | O99: 1255 | P99: 1360 | Q99: 1464 | R99: 1569 | S99: 1674 | T99: 1778 | U99: 1883 | V99: 1987 | W99: 2092 | X99: 2197 | Y99: 2301 | Z99: 2406 | AA99: 2510 | AB99: 2615 | AC99: 2720 | AD99: 2824 | AE99: 2929 | AF99: 3033 | AG99: 3138
D100: Classic CV(L) | E100: нижнее | F100: CV(L) 10-3-XX
C102: 11 | D102: Classic C | E102: боковое | F102: CC 10-3-XX | G102: 602 | H102: 753 | I102: 904 | J102: 1054 | K102: 1205 | L102: 1355 | M102: 1506 | N102: 1657 | O102: 1807 | P102: 1958 | Q102: 2108 | R102: 2259 | S102: 2410 | T102: 2560 | U102: 2711 | V102: 2861 | W102: 3012 | X102: 3163 | Y102: 3313 | Z102: 3464 | AA102: 3614 | AB102: 3765 | AC102: 3916 | AD102: 4066 | AE102: 4217 | AF102: 4367 | AG102: 4518
D103: Classic CV(L) | E103: нижнее | F103: CV(L) 10-3-XX
C105: 20 | D105: Classic C | E105: боковое | F105: CC 10-3-XX | G105: 681 | H105: 851 | I105: 1021 | J105: 1191 | K105: 1362 | L105: 1532 | M105: 1702 | N105: 1872 | O105: 2042 | P105: 2213 | Q105: 2383 | R105: 2553 | S105: 2723 | T105: 2893 | U105: 3064 | V105: 3234 | W105: 3404 | X105: 3574 | Y105: 3744 | Z105: 3915 | AA105: 4085 | AB105: 4255 | AC105: 4425 | AD105: 4595 | AE105: 4766 | AF105: 4936 | AG105: 5106
D106: Classic CV(L) | E106: нижнее | F106: CV(L) 10-3-XX
C108: 21 | D108: Classic C | E108: боковое | F108: CC 10-3-XX | G108: 884 | H108: 1106 | I108: 1327 | J108: 1548 | K108: 1769 | L108: 1990 | M108: 2211 | N108: 2432 | O108: 2653 | P108: 2874 | Q108: 3095 | R108: 3317 | S108: 3538 | T108: 3759 | U108: 3980 | V108: 4201 | W108: 4422 | X108: 4643 | Y108: 4864 | Z108: 5085 | AA108: 5306 | AB108: 5528 | AC108: 5749 | AD108: 5970 | AE108: 6191 | AF108: 6412 | AG108: 6633
D109: Classic CV(L) | E109: нижнее | F109: CV(L) 10-3-XX
C111: 22 | D111: Classic C | E111: боковое | F111: CC 10-3-XX | G111: 1154 | H111: 1443 | I111: 1731 | J111: 2020 | K111: 2308 | L111: 2597 | M111: 2885 | N111: 3174 | O111: 3462 | P111: 3751 | Q111: 4039 | R111: 4328 | S111: 4616 | T111: 4905 | U111: 5193 | V111: 5482 | W111: 5770 | X111: 6059 | Y111: 6347 | Z111: 6636 | AA111: 6924 | AB111: 7213 | AC111: 7501 | AD111: 7790 | AE111: 8078 | AF111: 8367 | AG111: 8655
D112: Classic CV(L) | E112: нижнее | F112: CV(L) 10-3-XX
C114: 30 | D114: Classic C | E114: боковое | F114: CC 10-3-XX | G114: 1094 | H114: 1368 | I114: 1642 | J114: 1915 | K114: 2189 | L114: 2462 | M114: 2736 | N114: 3010 | O114: 3283 | P114: 3557 | Q114: 3830 | R114: 4104 | S114: 4378 | T114: 4651 | U114: 4925 | V114: 5198 | W114: 5472 | X114: 5746 | Y114: 6019 | Z114: 6293 | AA114: 6566 | AB114: 6840 | AC114: 7114 | AD114: 7387 | AE114: 7661 | AF114: 7934 | AG114: 8208
D115: Classic CV(L) | E115: нижнее | F115: CV(L) 10-3-XX
C117: 33 | D117: Classic C | E117: боковое | F117: CC 10-3-XX | G117: 1599 | H117: 1999 | I117: 2398 | J117: 2798 | K117: 3198 | L117: 3597 | M117: 3997 | N117: 4397 | O117: 4796 | P117: 5196 | Q117: 5596 | R117: 5996 | S117: 6395 | T117: 6795 | U117: 7195 | V117: 7594 | W117: 7994 | X117: 8394 | Y117: 8793 | Z117: 9193 | AA117: 9593 | AB117: 9993 | AC117: 10392 | AD117: 10792 | AE117: 11192 | AF117: 11591 | AG117: 11991
D118: Classic CV(L) | E118: нижнее | F118: CV(L) 10-3-XX
